OrganisationURI,OrganisationLabel,OrganisationalUnit,TransactionNumber,Invoice Ref.,BeneficiaryName,Expense Type,Purpose,PaymentDate,Amount
http://statistics.data.gov.uk/id/local-authority-district/23UB,Cheltenham Borough Council,Cheltenham Depot,14043926,182111,A & E Fire Equipment Limited,R2083-ADB103,R&M of Build - Routine,15/04/2016,649.45
http://statistics.data.gov.uk/id/local-authority-district/23UB,Cheltenham Borough Council,Income and Expenditure on Investment Properties and Changes in Their Fair Value,14043828,182618,A & E Fire Equipment Limited,R2004-FIE040,R & M of Build Programmed,08/04/2016,"3,746.00"
http://statistics.data.gov.uk/id/local-authority-district/23UB,Cheltenham Borough Council,Repairs and Maintenance,14043724,182832,A & E Fire Equipment Limited,R2083-HRA100,R&M of Build - Routine,15/04/2016,"2,387.07"
http://statistics.data.gov.uk/id/local-authority-district/23UB,Cheltenham Borough Council,Fire Protection,14044294,182915,A & E Fire Equipment Limited,C1107-CAH015,Building Works,29/04/2016,536.00
http://statistics.data.gov.uk/id/local-authority-district/23UB,Cheltenham Borough Council,Press & PR/Communications,14044505,IN5075,Access Intelligence Media & Communications Limited,R4531-SUP018,IT - Purchase of Software,29/04/2016,"3,850.00"
http://statistics.data.gov.uk/id/local-authority-district/23UB,Cheltenham Borough Council,Art Gallery & Museum Development,14021007,28173881,AECOM Professional Services LLP,C1005-CAP121,Surveyors Fees,22/04/2016,"4,900.00"
http://statistics.data.gov.uk/id/local-authority-district/23UB,Cheltenham Borough Council,Art Gallery & Museum Development,14034986,28209348,AECOM Professional Services LLP,C1005-CAP121,Surveyors Fees,22/04/2016,"12,300.00"
http://statistics.data.gov.uk/id/local-authority-district/23UB,Cheltenham Borough Council,Art Gallery & Museum Development,14042472,28244752,AECOM Professional Services LLP,C1005-CAP121,Surveyors Fees,22/04/2016,"6,150.00"
http://statistics.data.gov.uk/id/local-authority-district/23UB,Cheltenham Borough Council,Individual Electoral Registration,14043881,28818,Alpha Response Print & Mail Limited,R4300-ELE010,Printing - Services,08/04/2016,688.00
http://statistics.data.gov.uk/id/local-authority-district/23UB,Cheltenham Borough Council,Individual Electoral Registration,14043882,28834,Alpha Response Print & Mail Limited,R4400-ELE010,Services - Professional Fees,08/04/2016,767.25
http://statistics.data.gov.uk/id/local-authority-district/23UB,Cheltenham Borough Council,District Elections,14044046,28916,Alpha Response Print & Mail Limited,R4300-ELE002,Printing - Services,29/04/2016,"1,675.50"
http://statistics.data.gov.uk/id/local-authority-district/23UB,Cheltenham Borough Council,Police & Crime Commissioner Elections,14044046,28916,Alpha Response Print & Mail Limited,R4300-ELE008,Printing - Services,29/04/2016,"2,010.60"
http://statistics.data.gov.uk/id/local-authority-district/23UB,Cheltenham Borough Council,Flood Risk Management,14044273,888,Anderson Civil Engineering UK Limited,R5001-FRM101,TPP - Major External Contractors,22/04/2016,"4,973.64"
http://statistics.data.gov.uk/id/local-authority-district/23UB,Cheltenham Borough Council,Flood Risk Management,14044273,888,Anderson Civil Engineering UK Limited,R5001-FRM101,TPP - Major External Contractors,22/04/2016,950.00
http://statistics.data.gov.uk/id/local-authority-district/23UB,Cheltenham Borough Council,Public Conveniences,14042951,538285,Andy Loos Limited,R2083-REG019,R&M of Build - Routine,15/04/2016,"1,016.00"
http://statistics.data.gov.uk/id/local-authority-district/23UB,Cheltenham Borough Council,Tenant Insurance Control,14043951,Premium Declaration 2016,AON Limited - Tenant Insurance,R9925-HRA901,Tenant Insurance Scheme Payments,15/04/2016,"7,085.87"
http://statistics.data.gov.uk/id/local-authority-district/23UB,Cheltenham Borough Council,Development Control - Applications,14044217,11911,Artful Limited,R4300-DEV001,Printing - Services,29/04/2016,"2,256.80"
http://statistics.data.gov.uk/id/local-authority-district/23UB,Cheltenham Borough Council,Development Control - Applications,14044524,11937,Artful Limited,R4300-DEV001,Printing - Services,29/04/2016,"2,837.12"
http://statistics.data.gov.uk/id/local-authority-district/23UB,Cheltenham Borough Council,Crematorium Scheme: New Build,14044331,8001,Aspect Ecology Limited,C1005-CAP601,Surveyors Fees,22/04/2016,845.00
http://statistics.data.gov.uk/id/local-authority-district/23UB,Cheltenham Borough Council,Environmental Health General,14043781,78920,Atlantic Umbrella Company Limited,R1100-REG001,Agency Staff,22/04/2016,"6,076.00"
http://statistics.data.gov.uk/id/local-authority-district/23UB,Cheltenham Borough Council,Environmental Health General,14043721,78940,Atlantic Umbrella Company Limited,R1100-REG001,Agency Staff,22/04/2016,"6,076.00"
http://statistics.data.gov.uk/id/local-authority-district/23UB,Cheltenham Borough Council,Joint Core Strategy,14044466,INV304647,Attwaters Jameson Hill Solicitors,R4400-PLP101,Services - Professional Fees,29/04/2016,"1,081.00"
http://statistics.data.gov.uk/id/local-authority-district/23UB,Cheltenham Borough Council,Joint Core Strategy,14044465,INV305180,Attwaters Jameson Hill Solicitors,R4400-PLP101,Services - Professional Fees,29/04/2016,"9,025.00"
http://statistics.data.gov.uk/id/local-authority-district/23UB,Cheltenham Borough Council,Joint Core Strategy,14044464,INV305282,Attwaters Jameson Hill Solicitors,R4400-PLP101,Services - Professional Fees,29/04/2016,"3,262.50"
http://statistics.data.gov.uk/id/local-authority-district/23UB,Cheltenham Borough Council,Sports & Open Spaces Repairs & Maintenance,14044239,TW/899,Bear Associates Surveyors Limited,R4400-OPS122,Services - Professional Fees,22/04/2016,"4,492.02"
http://statistics.data.gov.uk/id/local-authority-district/23UB,Cheltenham Borough Council,Reception/Customer Services,14044318,47738677,Bentley Systems International Limited,R4534-SUP008,IT - Maint Agreements,29/04/2016,"9,674.67"
http://statistics.data.gov.uk/id/local-authority-district/23UB,Cheltenham Borough Council,Cheltenham Business Partnership,14044334,160403-055,Blackadder Media Limited,R4411-HLD130,Consultancy Fees,22/04/2016,"4,290.00"
http://statistics.data.gov.uk/id/local-authority-district/23UB,Cheltenham Borough Council,Community Safety (Crime Reduction),14044298,45999,Bridgegate Security (GB) Limited,R4409-CCR001,Partnership Staff Fees,22/04/2016,"1,830.00"
http://statistics.data.gov.uk/id/local-authority-district/23UB,Cheltenham Borough Council,Animal Control,14044360,800284955,Bromsgrove District Council,R4413-REG003,Dog Kennels Fees,29/04/2016,"1,050.00"
http://statistics.data.gov.uk/id/local-authority-district/23UB,Cheltenham Borough Council,Animal Control,14044361,800284963,Bromsgrove District Council,R4413-REG003,Dog Kennels Fees,29/04/2016,"1,663.00"
http://statistics.data.gov.uk/id/local-authority-district/23UB,Cheltenham Borough Council,"Cemetery, Crematorium and Churchyards",14044428,26007461 A030,BT (Business Billing - Durham),R4514-CCM001,Comms - Telephone Rental/Service Charges,29/04/2016,"1,390.00"
http://statistics.data.gov.uk/id/local-authority-district/23UB,Cheltenham Borough Council,Trees,14044350,4649,C Mawdsley t/a Arbor Tree Care,R2070-PLP006,Tree Work,29/04/2016,990.00
http://statistics.data.gov.uk/id/local-authority-district/23UB,Cheltenham Borough Council,"Cemetery, Crematorium and Churchyards",14044539,29377,CDK Castings Limited T/A Arkell & Hurcombe,R4011-CCM001,Goods For Resale,29/04/2016,600.00
http://statistics.data.gov.uk/id/local-authority-district/23UB,Cheltenham Borough Council,Cheltenham Business Partnership,14044353,SI-3775,CDS Publications Limited,R4317-HLD130,Non Staff Advertising,22/04/2016,600.00
http://statistics.data.gov.uk/id/local-authority-district/23UB,Cheltenham Borough Council,Community Welfare Grants,14043819,Com Pride Poetry 2016,Cheltenham Poetry Festival C.I.C.,R6280-GBD001,Grants,08/04/2016,"1,000.00"
http://statistics.data.gov.uk/id/local-authority-district/23UB,Cheltenham Borough Council,"Cemetery, Crematorium and Churchyards",14044390,C5652,CJ & CE Cleevely T/A Cleevely Memorials,R2121-CCM001,Materials For Small Repairs,29/04/2016,"1,100.00"
http://statistics.data.gov.uk/id/local-authority-district/23UB,Cheltenham Borough Council,Sports & Open Spaces Repairs & Maintenance,14043559,6421,"Clarke, Nicholls & Marcel Limited (CNM)",R2008-OPS122,R & M of Build - Reactive Repairs,08/04/2016,"1,400.00"
http://statistics.data.gov.uk/id/local-authority-district/23UB,Cheltenham Borough Council,"Cemetery, Crematorium and Churchyards",14043958,556180,Comensura Limited,R1100-CCM001,Agency Staff,15/04/2016,964.32
http://statistics.data.gov.uk/id/local-authority-district/23UB,Cheltenham Borough Council,"Cemetery, Crematorium and Churchyards",14044230,558671,Comensura Limited,R1100-CCM001,Agency Staff,22/04/2016,731.90
http://statistics.data.gov.uk/id/local-authority-district/23UB,Cheltenham Borough Council,"Cemetery, Crematorium and Churchyards",14044231,558976,Comensura Limited,R1100-CCM001,Agency Staff,22/04/2016,731.90
http://statistics.data.gov.uk/id/local-authority-district/23UB,Cheltenham Borough Council,"Cemetery, Crematorium and Churchyards",14044521,559823,Comensura Limited,R1100-CCM001,Agency Staff,29/04/2016,"2,574.98"
http://statistics.data.gov.uk/id/local-authority-district/23UB,Cheltenham Borough Council,Cheltenham Business Partnership,14043943,CRL16002,Connect Regen Limited,R6280-HLD130,Grants,08/04/2016,"3,000.00"
http://statistics.data.gov.uk/id/local-authority-district/23UB,Cheltenham Borough Council,Prince of Wales Stadium Repairs & Maintenance,14043702,C26748,Cotswold Drain Service Limited,R2043-REC112,R & M of Build Drain Cleaning,08/04/2016,660.00
http://statistics.data.gov.uk/id/local-authority-district/23UB,Cheltenham Borough Council,Flood Risk Management,14044349,c26860,Cotswold Drain Service Limited,R5001-FRM101,TPP - Major External Contractors,29/04/2016,-560.00
http://statistics.data.gov.uk/id/local-authority-district/23UB,Cheltenham Borough Council,Flood Risk Management,14044349,c26860,Cotswold Drain Service Limited,R5001-FRM101,TPP - Major External Contractors,29/04/2016,560.00
http://statistics.data.gov.uk/id/local-authority-district/23UB,Cheltenham Borough Council,Flood Risk Management,14044349,c26860,Cotswold Drain Service Limited,R5001-FRM101,TPP - Major External Contractors,29/04/2016,560.00
http://statistics.data.gov.uk/id/local-authority-district/23UB,Cheltenham Borough Council,Household Waste,14044543,3004864,Craemer UK Limited,R4000-WST001,Equipment Purchase,29/04/2016,"11,100.00"
http://statistics.data.gov.uk/id/local-authority-district/23UB,Cheltenham Borough Council,Income and Expenditure on Investment Properties and Changes in Their Fair Value,14044068,12212,CWE Services Limited,R2004-FIE040,R & M of Build Programmed,22/04/2016,"1,175.00"
http://statistics.data.gov.uk/id/local-authority-district/23UB,Cheltenham Borough Council,Income and Expenditure on Investment Properties and Changes in Their Fair Value,14044069,12213,CWE Services Limited,R2004-FIE040,R & M of Build Programmed,22/04/2016,"1,860.00"
http://statistics.data.gov.uk/id/local-authority-district/23UB,Cheltenham Borough Council,Income and Expenditure on Investment Properties and Changes in Their Fair Value,14044059,12214,CWE Services Limited,R2004-FIE040,R & M of Build Programmed,22/04/2016,915.00
http://statistics.data.gov.uk/id/local-authority-district/23UB,Cheltenham Borough Council,Income and Expenditure on Investment Properties and Changes in Their Fair Value,14044061,12216,CWE Services Limited,R2004-FIE040,R & M of Build Programmed,22/04/2016,"2,500.00"
http://statistics.data.gov.uk/id/local-authority-district/23UB,Cheltenham Borough Council,Income and Expenditure on Investment Properties and Changes in Their Fair Value,14044062,12217,CWE Services Limited,R2004-FIE040,R & M of Build Programmed,22/04/2016,525.00
http://statistics.data.gov.uk/id/local-authority-district/23UB,Cheltenham Borough Council,Income and Expenditure on Investment Properties and Changes in Their Fair Value,14044063,12218,CWE Services Limited,R2004-FIE040,R & M of Build Programmed,22/04/2016,"1,750.00"
http://statistics.data.gov.uk/id/local-authority-district/23UB,Cheltenham Borough Council,Allotments,14044268,934,D A Jones Landscapes,C4000-CAP501,Acquisition of Equipment,29/04/2016,"4,988.00"
http://statistics.data.gov.uk/id/local-authority-district/23UB,Cheltenham Borough Council,Allotments,14044268,934,D A Jones Landscapes,C4000-CAP501,Acquisition of Equipment,29/04/2016,"-4,988.00"
http://statistics.data.gov.uk/id/local-authority-district/23UB,Cheltenham Borough Council,Allotments,14044268,934,D A Jones Landscapes,C4000-CAP501,Acquisition of Equipment,29/04/2016,"4,988.00"
http://statistics.data.gov.uk/id/local-authority-district/23UB,Cheltenham Borough Council,Sports & Open Spaces Operations,14044270,936,D A Jones Landscapes,R2076-OPS002,Grounds Maintenance - Non Contract,29/04/2016,825.00
http://statistics.data.gov.uk/id/local-authority-district/23UB,Cheltenham Borough Council,Sports & Open Spaces Operations,14044270,936,D A Jones Landscapes,R2076-OPS002,Grounds Maintenance - Non Contract,29/04/2016,-825.00
http://statistics.data.gov.uk/id/local-authority-district/23UB,Cheltenham Borough Council,Sports & Open Spaces Operations,14044270,936,D A Jones Landscapes,R2076-OPS002,Grounds Maintenance - Non Contract,29/04/2016,750.00
http://statistics.data.gov.uk/id/local-authority-district/23UB,Cheltenham Borough Council,Urban Design,14044271,937,D A Jones Landscapes,R4010-URB101,Materials - Other Materials,29/04/2016,715.00
http://statistics.data.gov.uk/id/local-authority-district/23UB,Cheltenham Borough Council,Urban Design,14044271,937,D A Jones Landscapes,R4010-URB101,Materials - Other Materials,29/04/2016,-715.00
http://statistics.data.gov.uk/id/local-authority-district/23UB,Cheltenham Borough Council,Urban Design,14044271,937,D A Jones Landscapes,R4010-URB101,Materials - Other Materials,29/04/2016,631.70
http://statistics.data.gov.uk/id/local-authority-district/23UB,Cheltenham Borough Council,Supervision and Management,14043188,SI+277795D,David Phillips Furniture,R4000-HRA110,Equipment Purchase,08/04/2016,"8,894.94"
http://statistics.data.gov.uk/id/local-authority-district/23UB,Cheltenham Borough Council,Planning Policy,14044386,7402281206,Dell Corporation Limited,R4400-PLP001,Services - Professional Fees,22/04/2016,"1,270.86"
http://statistics.data.gov.uk/id/local-authority-district/23UB,Cheltenham Borough Council,"Cemetery, Crematorium and Churchyards",14044359,70416,Dr Young & Partners,R4401-CCM001,Services - Fees and Charges,22/04/2016,"11,616.00"
http://statistics.data.gov.uk/id/local-authority-district/23UB,Cheltenham Borough Council,Council Tax Collection,14044302,20693,Dundore Limited T/A Security Data Print,R4300-LTC001,Printing - Services,22/04/2016,"5,818.93"
http://statistics.data.gov.uk/id/local-authority-district/23UB,Cheltenham Borough Council,Household Waste,14043959,IN109468,Egbert H Taylor and Co Limited,R4000-WST001,Equipment Purchase,15/04/2016,"7,966.50"
http://statistics.data.gov.uk/id/local-authority-district/23UB,Cheltenham Borough Council,Parks & Gardens Operations,14043927,60124688,Eibe Play Ltd,R2075-OPS001,Grounds Maintenance - Contract,08/04/2016,"7,927.75"
http://statistics.data.gov.uk/id/local-authority-district/23UB,Cheltenham Borough Council,Pittville Park Play Area,14044371,VALUATION3,Eibe Play Ltd,C4000-CAP125,Acquisition of Equipment,29/04/2016,"57,044.97"
http://statistics.data.gov.uk/id/local-authority-district/23UB,Cheltenham Borough Council,Pittville Park Play Area,14044371,VALUATION3,Eibe Play Ltd,C4000-CAP125,Acquisition of Equipment,29/04/2016,"-57,044.97"
http://statistics.data.gov.uk/id/local-authority-district/23UB,Cheltenham Borough Council,Pittville Park Play Area,14044371,VALUATION3,Eibe Play Ltd,C4000-CAP125,Acquisition of Equipment,29/04/2016,"57,044.97"
http://statistics.data.gov.uk/id/local-authority-district/23UB,Cheltenham Borough Council,Repairs and Maintenance,14044191,SIN00031490/A,Emmdee Electrical Services Limited,R2083-HRA100,R&M of Build - Routine,22/04/2016,"13,609.57"
http://statistics.data.gov.uk/id/local-authority-district/23UB,Cheltenham Borough Council,Recreation Centre Repairs & Maintenance,14044201,301267/3/2016,Ener-G Combined Power (South) Limited,R2100-REC111,Electricity,22/04/2016,"3,021.99"
http://statistics.data.gov.uk/id/local-authority-district/23UB,Cheltenham Borough Council,Garage Improvements,14042434,WM006696,English Landscapes Limited t/a The Landscape Group,C1107-CAH008,Building Works,15/04/2016,"13,875.52"
http://statistics.data.gov.uk/id/local-authority-district/23UB,Cheltenham Borough Council,Environmental Works (Tenant Selection),14044528,WM006941,English Landscapes Limited t/a The Landscape Group,C1107-CAH029,Building Works,29/04/2016,653.66
http://statistics.data.gov.uk/id/local-authority-district/23UB,Cheltenham Borough Council,Environmental Works (Tenant Selection),14044531,WM006943,English Landscapes Limited t/a The Landscape Group,C1107-CAH029,Building Works,29/04/2016,"2,137.52"
http://statistics.data.gov.uk/id/local-authority-district/23UB,Cheltenham Borough Council,Flood Risk Management,14044320,HBFA/2362/01,Envex Contractors Limited,R5001-FRM101,TPP - Major External Contractors,29/04/2016,"-13,987.39"
http://statistics.data.gov.uk/id/local-authority-district/23UB,Cheltenham Borough Council,Flood Risk Management,14044320,HBFA/2362/01,Envex Contractors Limited,R5001-FRM101,TPP - Major External Contractors,29/04/2016,"13,987.39"
http://statistics.data.gov.uk/id/local-authority-district/23UB,Cheltenham Borough Council,Flood Risk Management,14044320,HBFA/2362/01,Envex Contractors Limited,R5001-FRM101,TPP - Major External Contractors,29/04/2016,"13,987.39"
http://statistics.data.gov.uk/id/local-authority-district/23UB,Cheltenham Borough Council,Asbestos Management,14042614,4852,Environmental Management Solutions Limited,C1107-CAH012,Building Works,08/04/2016,"39,320.40"
http://statistics.data.gov.uk/id/local-authority-district/23UB,Cheltenham Borough Council,Asbestos Management,14043738,5954,Environmental Management Solutions Limited,C1107-CAH012,Building Works,08/04/2016,"9,309.00"
http://statistics.data.gov.uk/id/local-authority-district/23UB,Cheltenham Borough Council,Recreation Centre Repairs & Maintenance,14044234,592/404,ESG Pool Ventilation Limited,R2080-REC111,Mechanical Services,22/04/2016,679.00
http://statistics.data.gov.uk/id/local-authority-district/23UB,Cheltenham Borough Council,Sports & Open Spaces Operations,14043955,1308154,Euro Car Parts Limited,R4010-OPS002,Materials - Other Materials,15/04/2016,963.36
http://statistics.data.gov.uk/id/local-authority-district/23UB,Cheltenham Borough Council,Sustainability Measures,14044352,1381,Evolve Home Energy Solutions Limited,C1107-CAH032,Building Works,22/04/2016,643.20
http://statistics.data.gov.uk/id/local-authority-district/23UB,Cheltenham Borough Council,ICT,14043924,HEX67000569277,Experian Limited,R4401-SUP005,Services - Fees and Charges,15/04/2016,668.09
http://statistics.data.gov.uk/id/local-authority-district/23UB,Cheltenham Borough Council,Recreation Centre Repairs & Maintenance,14043355,7260,F T Leisure Limited,R2008-REC111,R & M of Build - Reactive Repairs,08/04/2016,"2,247.86"
http://statistics.data.gov.uk/id/local-authority-district/23UB,Cheltenham Borough Council,External Improvements,14042937,GP15/016944,G Purchase Construction Limited,C1107-CAH003,Building Works,15/04/2016,"14,393.18"
http://statistics.data.gov.uk/id/local-authority-district/23UB,Cheltenham Borough Council,External Improvements,14043655,GP15/017689,G Purchase Construction Limited,C1107-CAH003,Building Works,15/04/2016,"97,237.12"
http://statistics.data.gov.uk/id/local-authority-district/23UB,Cheltenham Borough Council,Trees,14044282,235,Gaskins Treework Specialists,R2070-PLP006,Tree Work,22/04/2016,"4,530.00"
http://statistics.data.gov.uk/id/local-authority-district/23UB,Cheltenham Borough Council,Trees,14044279,236,Gaskins Treework Specialists,R2070-PLP006,Tree Work,22/04/2016,"1,500.00"
http://statistics.data.gov.uk/id/local-authority-district/23UB,Cheltenham Borough Council,Supervision and Management,14044281,239,Gaskins Treework Specialists,R2070-HRA110,Tree Work,22/04/2016,725.00
http://statistics.data.gov.uk/id/local-authority-district/23UB,Cheltenham Borough Council,Trees,14044278,240,Gaskins Treework Specialists,R2070-PLP006,Tree Work,22/04/2016,"2,746.00"
http://statistics.data.gov.uk/id/local-authority-district/23UB,Cheltenham Borough Council,Sports & Open Spaces Operations,14044367,16-523-MR,GB Sport & Leisure UK Ltd,R4003-OPS002,Tools & Equipment - R & M,22/04/2016,756.00
http://statistics.data.gov.uk/id/local-authority-district/23UB,Cheltenham Borough Council,Sports & Open Spaces Operations,14044367,16-523-MR,GB Sport & Leisure UK Ltd,R4010-OPS002,Materials - Other Materials,22/04/2016,653.41
http://statistics.data.gov.uk/id/local-authority-district/23UB,Cheltenham Borough Council,Housing Advances,14044409,15702,Gemini Consultants Limited,R4401-HAV001,Services - Fees and Charges,29/04/2016,"6,164.01"
http://statistics.data.gov.uk/id/local-authority-district/23UB,Cheltenham Borough Council,Economic Development,14044450,03007461 041215,Gloucester City Council,R4400-ECD001,Services - Professional Fees,29/04/2016,"3,000.00"
http://statistics.data.gov.uk/id/local-authority-district/23UB,Cheltenham Borough Council,Gloucestershire Airport,14044286,12022184,Gloucester City Council,R4400-AIR101,Services - Professional Fees,22/04/2016,"1,500.00"
http://statistics.data.gov.uk/id/local-authority-district/23UB,Cheltenham Borough Council,Rent Allowances,14043865,33634a,Gloucester City Council,R6200-HBP001,Rent Allowances,15/04/2016,576.90
http://statistics.data.gov.uk/id/local-authority-district/23UB,Cheltenham Borough Council,Community Welfare Grants,14043006,4717,Gloucestershire Association for Voluntary & Community Action (GAVCA),R6280-GBD001,Grants,08/04/2016,"5,000.00"
http://statistics.data.gov.uk/id/local-authority-district/23UB,Cheltenham Borough Council,Cheltenham Strategic partnership,14043982,4747,Gloucestershire Association for Voluntary & Community Action (GAVCA),R4401-PLP103,Services - Fees and Charges,22/04/2016,"2,000.00"
http://statistics.data.gov.uk/id/local-authority-district/23UB,Cheltenham Borough Council,Community Welfare Grants,14043622,4748,Gloucestershire Association for Voluntary & Community Action (GAVCA),R6280-GBD001,Grants,08/04/2016,"2,360.00"
http://statistics.data.gov.uk/id/local-authority-district/23UB,Cheltenham Borough Council,Community Welfare Grants,14044459,4752,Gloucestershire Association for Voluntary & Community Action (GAVCA),R6280-GBD001,Grants,29/04/2016,"5,667.00"
http://statistics.data.gov.uk/id/local-authority-district/23UB,Cheltenham Borough Council,Homelessness,14044176,1800394878,Gloucestershire County Council,R6280-HOM001,Grants,22/04/2016,"8,302.00"
http://statistics.data.gov.uk/id/local-authority-district/23UB,Cheltenham Borough Council,Local Land Charges,14044509,1800397588,Gloucestershire County Council,R4401-LLC001,Services - Fees and Charges,29/04/2016,"7,956.83"
http://statistics.data.gov.uk/id/local-authority-district/23UB,Cheltenham Borough Council,Household Waste,14044397,1800397612,Gloucestershire County Council,R4400-WST001,Services - Professional Fees,22/04/2016,"4,032.00"
http://statistics.data.gov.uk/id/local-authority-district/23UB,Cheltenham Borough Council,Rent Allowances,14044255,DEA REFUND 1122435851,Gloucestershire County Council,R6200-HBP001,Rent Allowances,22/04/2016,585.73
http://statistics.data.gov.uk/id/local-authority-district/23UB,Cheltenham Borough Council,Corporate Management,14044215,8499204,Grant Thornton UK LLP,R4430-COR001,Audit Fees,29/04/2016,"12,351.50"
http://statistics.data.gov.uk/id/local-authority-district/23UB,Cheltenham Borough Council,Cheltenham Depot,14043692,3204,Greenway Partnership Limited T/A GPL Building Services,R2043-ADB103,R & M of Build Drain Cleaning,08/04/2016,"1,440.40"
http://statistics.data.gov.uk/id/local-authority-district/23UB,Cheltenham Borough Council,Land & Property presale costs,14043698,3214,Greenway Partnership Limited T/A GPL Building Services,C1005-CAP401,Surveyors Fees,08/04/2016,"2,930.00"
http://statistics.data.gov.uk/id/local-authority-district/23UB,Cheltenham Borough Council,Recreation Centre Repairs & Maintenance,14043695,3215,Greenway Partnership Limited T/A GPL Building Services,R2014-REC111,R & M of Build Windows,08/04/2016,"1,059.50"
http://statistics.data.gov.uk/id/local-authority-district/23UB,Cheltenham Borough Council,Cheltenham Depot,14043906,3232,Greenway Partnership Limited T/A GPL Building Services,R2061-ADB103,R & M of Build Cyclical Electric Inspections,15/04/2016,"1,325.00"
http://statistics.data.gov.uk/id/local-authority-district/23UB,Cheltenham Borough Council,Recreation Centre Repairs & Maintenance,14043912,3260,Greenway Partnership Limited T/A GPL Building Services,R2062-REC111,R & M of Build Cyclical Electrical Remedials,15/04/2016,690.00
http://statistics.data.gov.uk/id/local-authority-district/23UB,Cheltenham Borough Council,Public Conveniences,14043996,3272,Greenway Partnership Limited T/A GPL Building Services,R2083-REG019,R&M of Build - Routine,22/04/2016,"1,522.00"
http://statistics.data.gov.uk/id/local-authority-district/23UB,Cheltenham Borough Council,Cheltenham Depot,14043931,3273,Greenway Partnership Limited T/A GPL Building Services,R2062-ADB103,R & M of Build Cyclical Electrical Remedials,15/04/2016,"1,173.00"
http://statistics.data.gov.uk/id/local-authority-district/23UB,Cheltenham Borough Council,Cheltenham Depot,14043931,3273,Greenway Partnership Limited T/A GPL Building Services,R2062-ADB103,R & M of Build Cyclical Electrical Remedials,15/04/2016,"1,487.50"
http://statistics.data.gov.uk/id/local-authority-district/23UB,Cheltenham Borough Council,Cheltenham Depot,14043931,3273,Greenway Partnership Limited T/A GPL Building Services,R2062-ADB103,R & M of Build Cyclical Electrical Remedials,15/04/2016,"1,077.87"
http://statistics.data.gov.uk/id/local-authority-district/23UB,Cheltenham Borough Council,Cheltenham Depot,14043999,3275,Greenway Partnership Limited T/A GPL Building Services,R2043-ADB103,R & M of Build Drain Cleaning,22/04/2016,"1,419.28"
http://statistics.data.gov.uk/id/local-authority-district/23UB,Cheltenham Borough Council,Sports & Open Spaces Repairs & Maintenance,14043998,3276,Greenway Partnership Limited T/A GPL Building Services,R2079-OPS122,Sanitary and Plumbing,22/04/2016,"2,085.00"
http://statistics.data.gov.uk/id/local-authority-district/23UB,Cheltenham Borough Council,Homelessness,14044645,HOMELESS PREVENTION LOAN DEPOSIT,H M T Lettings and Management,R6280-HOM001,Grants,29/04/2016,600.00
http://statistics.data.gov.uk/id/local-authority-district/23UB,Cheltenham Borough Council,District Elections,14044317,9664,Halarose Limited,R4531-ELE002,IT - Purchase of Software,22/04/2016,517.34
http://statistics.data.gov.uk/id/local-authority-district/23UB,Cheltenham Borough Council,Registration of Electors,14044317,9664,Halarose Limited,R4531-ELE001,IT - Purchase of Software,22/04/2016,517.33
http://statistics.data.gov.uk/id/local-authority-district/23UB,Cheltenham Borough Council,District Elections,14044368,9695,Halarose Limited,R4531-ELE002,IT - Purchase of Software,22/04/2016,"9,504.04"
http://statistics.data.gov.uk/id/local-authority-district/23UB,Cheltenham Borough Council,Flood Risk Management,14044030,44009,Halcrow Group Limited,R5001-FRM101,TPP - Major External Contractors,22/04/2016,734.08
http://statistics.data.gov.uk/id/local-authority-district/23UB,Cheltenham Borough Council,Property Services,14043707,1006231202,Hays Specialist Recruitment Limited,R1100-SUP025,Agency Staff,08/04/2016,"5,000.00"
http://statistics.data.gov.uk/id/local-authority-district/23UB,Cheltenham Borough Council,Art Gallery & Museum Repairs & Maintenance,14043505,15387,Hellion Environmental Limited,R2080-CUL117,Mechanical Services,08/04/2016,520.84
http://statistics.data.gov.uk/id/local-authority-district/23UB,Cheltenham Borough Council,Recreation Centre Repairs & Maintenance,14043519,15401,Hellion Environmental Limited,R2080-REC111,Mechanical Services,08/04/2016,545.63
http://statistics.data.gov.uk/id/local-authority-district/23UB,Cheltenham Borough Council,Town Hall Repairs & Maintenance,14043548,15436,Hellion Environmental Limited,R2004-CUL112,R & M of Build Programmed,08/04/2016,"1,800.00"
http://statistics.data.gov.uk/id/local-authority-district/23UB,Cheltenham Borough Council,Town Hall Repairs & Maintenance,14043548,15436,Hellion Environmental Limited,R2004-CUL112,R & M of Build Programmed,08/04/2016,"4,516.00"
http://statistics.data.gov.uk/id/local-authority-district/23UB,Cheltenham Borough Council,Town Hall Repairs & Maintenance,14043549,15437,Hellion Environmental Limited,R2004-CUL112,R & M of Build Programmed,08/04/2016,770.00
http://statistics.data.gov.uk/id/local-authority-district/23UB,Cheltenham Borough Council,Town Hall Repairs & Maintenance,14043549,15437,Hellion Environmental Limited,R2004-CUL112,R & M of Build Programmed,08/04/2016,"1,679.00"
http://statistics.data.gov.uk/id/local-authority-district/23UB,Cheltenham Borough Council,Recreation Centre Repairs & Maintenance,14043550,15438,Hellion Environmental Limited,R2008-REC111,R & M of Build - Reactive Repairs,08/04/2016,625.96
http://statistics.data.gov.uk/id/local-authority-district/23UB,Cheltenham Borough Council,Art Gallery & Museum Repairs & Maintenance,14044156,15444,Hellion Environmental Limited,R2080-CUL117,Mechanical Services,22/04/2016,520.84
http://statistics.data.gov.uk/id/local-authority-district/23UB,Cheltenham Borough Council,Recreation Centre Repairs & Maintenance,14044141,15458,Hellion Environmental Limited,R2080-REC111,Mechanical Services,22/04/2016,545.63
http://statistics.data.gov.uk/id/local-authority-district/23UB,Cheltenham Borough Council,Recreation Centre Repairs & Maintenance,14044117,15484,Hellion Environmental Limited,R2008-REC111,R & M of Build - Reactive Repairs,22/04/2016,942.92
http://statistics.data.gov.uk/id/local-authority-district/23UB,Cheltenham Borough Council,Art Gallery & Museum Repairs & Maintenance,14044123,15485,Hellion Environmental Limited,R2008-CUL117,R & M of Build - Reactive Repairs,22/04/2016,554.63
http://statistics.data.gov.uk/id/local-authority-district/23UB,Cheltenham Borough Council,Art Gallery & Museum Repairs & Maintenance,14044175,15491,Hellion Environmental Limited,R2080-CUL117,Mechanical Services,22/04/2016,520.84
http://statistics.data.gov.uk/id/local-authority-district/23UB,Cheltenham Borough Council,Recreation Centre Repairs & Maintenance,14044102,15504,Hellion Environmental Limited,R2080-REC111,Mechanical Services,22/04/2016,545.63
http://statistics.data.gov.uk/id/local-authority-district/23UB,Cheltenham Borough Council,Arle Road Nursery Repairs Maintenance,14044503,15532,Hellion Environmental Limited,R2004-OPS111,R & M of Build Programmed,29/04/2016,842.50
http://statistics.data.gov.uk/id/local-authority-district/23UB,Cheltenham Borough Council,Repairs and Maintenance,14042104,INV000006753,High Performance Door Solutions Limited,R2021-HRA100,R & M of Build Disabled Adaptations,22/04/2016,"1,960.00"
http://statistics.data.gov.uk/id/local-authority-district/23UB,Cheltenham Borough Council,Corporate Policy Making,14043878,1603081,Hitec (Laboratories) Limited,R4531-COR003,IT - Purchase of Software,08/04/2016,"4,025.00"
http://statistics.data.gov.uk/id/local-authority-district/23UB,Cheltenham Borough Council,Corporate Policy Making,14044441,1603159,Hitec (Laboratories) Limited,R4531-COR003,IT - Purchase of Software,29/04/2016,985.00
http://statistics.data.gov.uk/id/local-authority-district/23UB,Cheltenham Borough Council,General Fund Balance Sheet,14043957,CISDEDUCT0603-050416,HMRC (CBC - CIS),B6220-BAL100,CIS Deductions Control (reallocated),15/04/2016,"2,716.24"
http://statistics.data.gov.uk/id/local-authority-district/23UB,Cheltenham Borough Council,Planning Policy,14044433,CBC2016-02,Howard Davis Consultancy Ltd,R1652-PLP001,Training Fees (External),29/04/2016,"1,050.00"
http://statistics.data.gov.uk/id/local-authority-district/23UB,Cheltenham Borough Council,Corporate Management,14044399,cbc2016-03,Howard Davis Consultancy Ltd,R1652-COR001,Training Fees (External),29/04/2016,525.00
http://statistics.data.gov.uk/id/local-authority-district/23UB,Cheltenham Borough Council,Building Control - Fee Earning Work,14044434,90341605,I H S Global Limited,R4701-BUC001,Subscriptions,29/04/2016,"4,830.76"
http://statistics.data.gov.uk/id/local-authority-district/23UB,Cheltenham Borough Council,Repairs and Maintenance,14044316,150255AA12,Ian Williams Limited,R2060-HRA100,R & M of Build Cyclical Painting Communal Areas,29/04/2016,"68,797.01"
http://statistics.data.gov.uk/id/local-authority-district/23UB,Cheltenham Borough Council,Repairs and Maintenance,14044316,150255AA12,Ian Williams Limited,R2060-HRA100,R & M of Build Cyclical Painting Communal Areas,29/04/2016,"-68,797.01"
http://statistics.data.gov.uk/id/local-authority-district/23UB,Cheltenham Borough Council,Repairs and Maintenance,14044316,150255AA12,Ian Williams Limited,R2060-HRA100,R & M of Build Cyclical Painting Communal Areas,29/04/2016,"68,797.01"
http://statistics.data.gov.uk/id/local-authority-district/23UB,Cheltenham Borough Council,Sheltered Housing,14043970,150255AB1,Ian Williams Limited,C1104-CAH014,Decoration,22/04/2016,"2,188.00"
http://statistics.data.gov.uk/id/local-authority-district/23UB,Cheltenham Borough Council,Property Services,14044203,7009281,Idox Software Limited,R1650-SUP025,Training Expenses,22/04/2016,"2,500.00"
http://statistics.data.gov.uk/id/local-authority-district/23UB,Cheltenham Borough Council,NNDR Collection,14043990,AL48382,Inform CPI Limited,R4400-LTC011,Services - Professional Fees,22/04/2016,"7,504.00"
http://statistics.data.gov.uk/id/local-authority-district/23UB,Cheltenham Borough Council,Development costs - Swindon Road,14044272,001 IN022282,J Harper & Sons (Leominster) Limited,C1107-CAH050,Building Works,22/04/2016,"44,385.35"
http://statistics.data.gov.uk/id/local-authority-district/23UB,Cheltenham Borough Council,Development costs - Swindon Road,14044272,001 IN022282,J Harper & Sons (Leominster) Limited,C1107-CAH050,Building Works,22/04/2016,"-44,385.35"
http://statistics.data.gov.uk/id/local-authority-district/23UB,Cheltenham Borough Council,Development costs - Swindon Road,14044272,001 IN022282,J Harper & Sons (Leominster) Limited,C1107-CAH050,Building Works,22/04/2016,"44,385.35"
http://statistics.data.gov.uk/id/local-authority-district/23UB,Cheltenham Borough Council,Development costs - Garage Sites 2a,14044315,5,J Harper & Sons (Leominster) Limited,C1107-CAH052,Building Works,22/04/2016,"148,646.88"
http://statistics.data.gov.uk/id/local-authority-district/23UB,Cheltenham Borough Council,Development costs - Garage Sites 2a,14044315,5,J Harper & Sons (Leominster) Limited,C1107-CAH052,Building Works,22/04/2016,"1,298.58"
http://statistics.data.gov.uk/id/local-authority-district/23UB,Cheltenham Borough Council,Development costs - Garage Sites 2a,14044315,5,J Harper & Sons (Leominster) Limited,C1107-CAH052,Building Works,22/04/2016,"-148,646.88"
http://statistics.data.gov.uk/id/local-authority-district/23UB,Cheltenham Borough Council,Development costs - Garage Sites 2a,14044315,5,J Harper & Sons (Leominster) Limited,C1107-CAH052,Building Works,22/04/2016,"148,646.88"
http://statistics.data.gov.uk/id/local-authority-district/23UB,Cheltenham Borough Council,Sports & Open Spaces Operations,14044437,16/005,J P North (Farmer),R2071-OPS002,Open Spaces and Grassed Areas,29/04/2016,520.00
http://statistics.data.gov.uk/id/local-authority-district/23UB,Cheltenham Borough Council,Sports & Open Spaces Operations,14044275,16/007,J P North (Farmer),R2071-OPS002,Open Spaces and Grassed Areas,29/04/2016,810.00
http://statistics.data.gov.uk/id/local-authority-district/23UB,Cheltenham Borough Council,Allotments,14044274,16/008,J P North (Farmer),R2075-OPS004,Grounds Maintenance - Contract,22/04/2016,800.00
http://statistics.data.gov.uk/id/local-authority-district/23UB,Cheltenham Borough Council,Sports & Open Spaces Operations,14044325,2069,Jayson R C Bayliss,R2075-OPS002,Grounds Maintenance - Contract,29/04/2016,"-1,225.00"
http://statistics.data.gov.uk/id/local-authority-district/23UB,Cheltenham Borough Council,Sports & Open Spaces Operations,14044325,2069,Jayson R C Bayliss,R2075-OPS002,Grounds Maintenance - Contract,29/04/2016,640.00
http://statistics.data.gov.uk/id/local-authority-district/23UB,Cheltenham Borough Council,Sports & Open Spaces Operations,14044325,2069,Jayson R C Bayliss,R2075-OPS002,Grounds Maintenance - Contract,29/04/2016,585.00
http://statistics.data.gov.uk/id/local-authority-district/23UB,Cheltenham Borough Council,Sports & Open Spaces Operations,14044325,2069,Jayson R C Bayliss,R2075-OPS002,Grounds Maintenance - Contract,29/04/2016,"1,225.00"
http://statistics.data.gov.uk/id/local-authority-district/23UB,Cheltenham Borough Council,Sports & Open Spaces Operations,14044328,2070,Jayson R C Bayliss,R2075-OPS002,Grounds Maintenance - Contract,29/04/2016,650.00
http://statistics.data.gov.uk/id/local-authority-district/23UB,Cheltenham Borough Council,Sports & Open Spaces Operations,14044328,2070,Jayson R C Bayliss,R2075-OPS002,Grounds Maintenance - Contract,29/04/2016,-650.00
http://statistics.data.gov.uk/id/local-authority-district/23UB,Cheltenham Borough Council,Sports & Open Spaces Operations,14044327,2071,Jayson R C Bayliss,R2075-OPS002,Grounds Maintenance - Contract,29/04/2016,"1,220.00"
http://statistics.data.gov.uk/id/local-authority-district/23UB,Cheltenham Borough Council,Parks & Gardens Operations,14044327,2071,Jayson R C Bayliss,R2075-OPS001,Grounds Maintenance - Contract,29/04/2016,"-1,220.00"
http://statistics.data.gov.uk/id/local-authority-district/23UB,Cheltenham Borough Council,Sports & Open Spaces Operations,14044326,2072,Jayson R C Bayliss,R2075-OPS002,Grounds Maintenance - Contract,29/04/2016,530.00
http://statistics.data.gov.uk/id/local-authority-district/23UB,Cheltenham Borough Council,Sports & Open Spaces Operations,14044326,2072,Jayson R C Bayliss,R2075-OPS002,Grounds Maintenance - Contract,29/04/2016,975.00
http://statistics.data.gov.uk/id/local-authority-district/23UB,Cheltenham Borough Council,Sports & Open Spaces Operations,14044326,2072,Jayson R C Bayliss,R2075-OPS002,Grounds Maintenance - Contract,29/04/2016,-975.00
http://statistics.data.gov.uk/id/local-authority-district/23UB,Cheltenham Borough Council,Car Parks - Off Street Operations,14044166,869,John Ryde Commercial,R2200-CPK001,Rent,29/04/2016,"9,141.25"
http://statistics.data.gov.uk/id/local-authority-district/23UB,Cheltenham Borough Council,New Heating Installations,14044693,1179062,Liberty Gas Group,C1107-CAH009,Building Works,29/04/2016,"3,554.70"
http://statistics.data.gov.uk/id/local-authority-district/23UB,Cheltenham Borough Council,Repairs and Maintenance,14044694,1179063,Liberty Gas Group,R2040-HRA100,R & M of Build Central Heating,29/04/2016,"42,618.78"
http://statistics.data.gov.uk/id/local-authority-district/23UB,Cheltenham Borough Council,New Heating Installations,14044692,1181072,Liberty Gas Group,C1107-CAH009,Building Works,29/04/2016,"3,554.70"
http://statistics.data.gov.uk/id/local-authority-district/23UB,Cheltenham Borough Council,New Heating Installations,14044691,1181073,Liberty Gas Group,C1107-CAH009,Building Works,29/04/2016,"43,696.93"
http://statistics.data.gov.uk/id/local-authority-district/23UB,Cheltenham Borough Council,ICT,14044375,16000555,LinchPin Networks Limited,R4548-SUP005,IT - Cabling and Network,22/04/2016,"2,600.00"
http://statistics.data.gov.uk/id/local-authority-district/23UB,Cheltenham Borough Council,ICT,14044377,16000559,LinchPin Networks Limited,R4548-SUP005,IT - Cabling and Network,22/04/2016,513.00
http://statistics.data.gov.uk/id/local-authority-district/23UB,Cheltenham Borough Council,Corporate Subscriptions,14044556,40147217,Local Government Association (LGA),R4701-DRM008,Subscriptions,29/04/2016,"10,450.00"
http://statistics.data.gov.uk/id/local-authority-district/23UB,Cheltenham Borough Council,Corporate Management,14044162,40216339,Local Government Improvement & Development (LGID),R4400-COR001,Services - Professional Fees,29/04/2016,"2,500.00"
http://statistics.data.gov.uk/id/local-authority-district/23UB,Cheltenham Borough Council,Repairs and Maintenance,14043409,1426,Low Carbon Exchange (LCX Solar Limited),R2004-HRA100,R & M of Build Programmed,15/04/2016,"14,410.88"
http://statistics.data.gov.uk/id/local-authority-district/23UB,Cheltenham Borough Council,Sustainability Measures,14044365,1503,Low Carbon Exchange (LCX Solar Limited),C1107-CAH032,Building Works,22/04/2016,"10,105.40"
http://statistics.data.gov.uk/id/local-authority-district/23UB,Cheltenham Borough Council,Corporate Subscriptions,14044550,8500469827,Manchester City Council,R4701-DRM008,Subscriptions,29/04/2016,750.00
http://statistics.data.gov.uk/id/local-authority-district/23UB,Cheltenham Borough Council,Urban Design,14043952,492,Mark Hazell Decorative Specialist,R4010-URB101,Materials - Other Materials,15/04/2016,"2,481.00"
http://statistics.data.gov.uk/id/local-authority-district/23UB,Cheltenham Borough Council,Sports & Open Spaces Operations,14044267,20298,Mark Wroot Agricultural & Garden Services,R2071-OPS002,Open Spaces and Grassed Areas,22/04/2016,720.00
http://statistics.data.gov.uk/id/local-authority-district/23UB,Cheltenham Borough Council,"Cheltenham Environmental Fund- Transport					",14044305,ZJB0037786,Marshalls Plc,R4000-ENF103,Equipment Purchase,22/04/2016,"1,356.01"
http://statistics.data.gov.uk/id/local-authority-district/23UB,Cheltenham Borough Council,External Improvements,14043780,5720,Mcdonnell Price Roofing Contractors Limited,C1107-CAH003,Building Works,15/04/2016,"10,093.00"
http://statistics.data.gov.uk/id/local-authority-district/23UB,Cheltenham Borough Council,External Improvements,14043780,5720,Mcdonnell Price Roofing Contractors Limited,C1107-CAH003,Building Works,15/04/2016,533.00
http://statistics.data.gov.uk/id/local-authority-district/23UB,Cheltenham Borough Council,Allotments,14043991,2836,MCPC Systems (UK) Limited,R4539-OPS004,IT - Consultancy,22/04/2016,508.00
http://statistics.data.gov.uk/id/local-authority-district/23UB,Cheltenham Borough Council,Trees,14044374,1589,Meadowside Tree Care,R2070-PLP006,Tree Work,22/04/2016,"1,054.00"
http://statistics.data.gov.uk/id/local-authority-district/23UB,Cheltenham Borough Council,Disabled Facility Grants,14043872,REDACTED,Mears Home Improvements (Client Account),C5000-CAP221,Grants,08/04/2016,"1,813.65"
http://statistics.data.gov.uk/id/local-authority-district/23UB,Cheltenham Borough Council,Disabled Facility Grants,14043871,REDACTED,Mears Home Improvements (Client Account),C5000-CAP221,Grants,08/04/2016,"5,000.25"
http://statistics.data.gov.uk/id/local-authority-district/23UB,Cheltenham Borough Council,Neighbourhood works,14044369,1125,MHP Design Limited,C1107-CAH005,Building Works,22/04/2016,"2,370.00"
http://statistics.data.gov.uk/id/local-authority-district/23UB,Cheltenham Borough Council,Development Task Force,14043875,CBC_0004,Monument Geomatics Limited,R4400-PLP102,Services - Professional Fees,08/04/2016,825.00
http://statistics.data.gov.uk/id/local-authority-district/23UB,Cheltenham Borough Council,Repairs and Maintenance,14044332,25576,Morgan Lambert Limited,R2040-HRA100,R & M of Build Central Heating,22/04/2016,792.00
http://statistics.data.gov.uk/id/local-authority-district/23UB,Cheltenham Borough Council,Joint Core Strategy,14044403,CTG JCS 009,Mr Ian Kemp,R4400-PLP101,Services - Professional Fees,29/04/2016,"4,899.60"
http://statistics.data.gov.uk/id/local-authority-district/23UB,Cheltenham Borough Council,Joint Core Strategy,14044045,96916,Nathaniel Lichfield & Partners,R4400-PLP101,Services - Professional Fees,29/04/2016,"6,192.03"
http://statistics.data.gov.uk/id/local-authority-district/23UB,Cheltenham Borough Council,Arle Road Nursery Repairs Maintenance,14044205,240316,Neil Fletcher,R2004-OPS111,R & M of Build Programmed,22/04/2016,"1,096.60"
http://statistics.data.gov.uk/id/local-authority-district/23UB,Cheltenham Borough Council,Arle Road Nursery Repairs Maintenance,14044205,240316,Neil Fletcher,R2004-OPS111,R & M of Build Programmed,22/04/2016,"1,200.00"
http://statistics.data.gov.uk/id/local-authority-district/23UB,Cheltenham Borough Council,"Cemetery, Crematorium and Churchyards",14043347,2241,Nick Bevan Consulting Limited,R2076-CCM001,Grounds Maintenance - Non Contract,15/04/2016,"2,215.00"
http://statistics.data.gov.uk/id/local-authority-district/23UB,Cheltenham Borough Council,Income and Expenditure on Investment Properties and Changes in Their Fair Value,14043616,2355,Nick Bevan Consulting Limited,R2004-FIE040,R & M of Build Programmed,08/04/2016,700.00
http://statistics.data.gov.uk/id/local-authority-district/23UB,Cheltenham Borough Council,Parks & Gardens Operations,14044555,0003/10002749,Nicks & Company (Timber) Limited,R4010-OPS001,Materials - Other Materials,29/04/2016,"2,100.74"
http://statistics.data.gov.uk/id/local-authority-district/23UB,Cheltenham Borough Council,Structural / Damp Works,14043033,9371,NKS Contracts (Central) Limited,C1107-CAH016,Building Works,15/04/2016,"19,540.03"
http://statistics.data.gov.uk/id/local-authority-district/23UB,Cheltenham Borough Council,Internal Improvements,14044540,9606,NKS Contracts (Central) Limited,C1107-CAH004,Building Works,29/04/2016,"34,470.37"
http://statistics.data.gov.uk/id/local-authority-district/23UB,Cheltenham Borough Council,Phase 3 Development,14044330,4052,NOMA Architects Limited,C1107-CAH039,Building Works,29/04/2016,"1,000.00"
http://statistics.data.gov.uk/id/local-authority-district/23UB,Cheltenham Borough Council,Community Welfare Grants,14043879,Oakley DA,Oakley Neighbourhood Project,R6280-GBD001,Grants,08/04/2016,"2,816.83"
http://statistics.data.gov.uk/id/local-authority-district/23UB,Cheltenham Borough Council,Community Welfare Grants,14044245,oakley neighbourhood project grant claim,Oakley Neighbourhood Project,R6280-GBD001,Grants,22/04/2016,"2,532.44"
http://statistics.data.gov.uk/id/local-authority-district/23UB,Cheltenham Borough Council,CCTV,14044452,626544,OpenView Security Solutions Limited,R4003-CCT001,Tools & Equipment - R & M,29/04/2016,"1,419.17"
http://statistics.data.gov.uk/id/local-authority-district/23UB,Cheltenham Borough Council,Joint Core Strategy,14044467,345.15.16,Opinion Research Services Ltd,R4400-PLP101,Services - Professional Fees,29/04/2016,"15,000.00"
http://statistics.data.gov.uk/id/local-authority-district/23UB,Cheltenham Borough Council,Repairs and Maintenance,14044190,O0396384,Orbis Protect Limited,R2012-HRA100,R & M of Build Standby and Call Out,29/04/2016,"1,047.03"
http://statistics.data.gov.uk/id/local-authority-district/23UB,Cheltenham Borough Council,Joint Core Strategy,14043681,404681,Ove Arup & Partners Limited,R4401-PLP101,Services - Fees and Charges,08/04/2016,"3,940.00"
http://statistics.data.gov.uk/id/local-authority-district/23UB,Cheltenham Borough Council,Art Gallery & Museum Repairs & Maintenance,14044025,55658,P & R Heating Limited,R2080-CUL117,Mechanical Services,22/04/2016,"4,302.30"
http://statistics.data.gov.uk/id/local-authority-district/23UB,Cheltenham Borough Council,Art Gallery & Museum Repairs & Maintenance,14044024,55659,P & R Heating Limited,R2083-CUL117,R&M of Build - Routine,22/04/2016,"1,955.00"
http://statistics.data.gov.uk/id/local-authority-district/23UB,Cheltenham Borough Council,Development costs - Garage Sites 2a,14044197,MAR641/PPC/RCS,P C Moleing Services Limited,C1107-CAH052,Building Works,29/04/2016,545.00
http://statistics.data.gov.uk/id/local-authority-district/23UB,Cheltenham Borough Council,Car Parks - Off Street Operations,14043136,UK85381,Parkeon Limited,R4400-CPK001,Services - Professional Fees,08/04/2016,"1,967.32"
http://statistics.data.gov.uk/id/local-authority-district/23UB,Cheltenham Borough Council,Car Parks - Off Street Operations,14043063,UK85597,Parkeon Limited,R4003-CPK001,Tools & Equipment - R & M,08/04/2016,655.50
http://statistics.data.gov.uk/id/local-authority-district/23UB,Cheltenham Borough Council,Car Parks - Off Street Operations,14044379,uk86891,Parkeon Limited,R4003-CPK001,Tools & Equipment - R & M,29/04/2016,"2,432.75"
http://statistics.data.gov.uk/id/local-authority-district/23UB,Cheltenham Borough Council,Car Parks - Off Street Operations,14044510,UK86969,Parkeon Limited,R4003-CPK001,Tools & Equipment - R & M,29/04/2016,"1,446.37"
http://statistics.data.gov.uk/id/local-authority-district/23UB,Cheltenham Borough Council,Car Parks - Off Street Operations,14044675,6407,Patrol,R4401-CPK001,Services - Fees and Charges,29/04/2016,545.60
http://statistics.data.gov.uk/id/local-authority-district/23UB,Cheltenham Borough Council,Car Parks - Off Street Operations,14044683,6664,Patrol,R4401-CPK001,Services - Fees and Charges,29/04/2016,613.80
http://statistics.data.gov.uk/id/local-authority-district/23UB,Cheltenham Borough Council,Cheltenham Depot,14043664,63484388,Personnel Hygiene Services (PHS Group),R2083-ADB103,R&M of Build - Routine,29/04/2016,"1,548.52"
http://statistics.data.gov.uk/id/local-authority-district/23UB,Cheltenham Borough Council,Postal Services,14044535,60210054,Pitney Bowes - Postage by Phone,R4521-SUP024,Postages - franking machine,29/04/2016,"5,000.00"
http://statistics.data.gov.uk/id/local-authority-district/23UB,Cheltenham Borough Council,Development costs - Swindon Road,14044346,16-5563 ac,PMP CONSULTANTS LIMITED,C1107-CAH050,Building Works,22/04/2016,"5,087.88"
http://statistics.data.gov.uk/id/local-authority-district/23UB,Cheltenham Borough Council,Night Time Levy,14044348,dbts00005022,Police and Crime Commissioner for Gloucestershire,R4402-REG024,Services - General Licences,22/04/2016,"28,934.00"
http://statistics.data.gov.uk/id/local-authority-district/23UB,Cheltenham Borough Council,Joint Core Strategy,14043661,PINF814426,Randstad Employment Bureau Limited,R4400-PLP101,Services - Professional Fees,08/04/2016,870.00
http://statistics.data.gov.uk/id/local-authority-district/23UB,Cheltenham Borough Council,Joint Core Strategy,14043656,PINF814448,Randstad Employment Bureau Limited,R4400-PLP101,Services - Professional Fees,08/04/2016,870.00
http://statistics.data.gov.uk/id/local-authority-district/23UB,Cheltenham Borough Council,Joint Core Strategy,14043657,PINF814449,Randstad Employment Bureau Limited,R4400-PLP101,Services - Professional Fees,08/04/2016,"1,196.25"
http://statistics.data.gov.uk/id/local-authority-district/23UB,Cheltenham Borough Council,Joint Core Strategy,14043658,PINF814450,Randstad Employment Bureau Limited,R4400-PLP101,Services - Professional Fees,08/04/2016,870.00
http://statistics.data.gov.uk/id/local-authority-district/23UB,Cheltenham Borough Council,Joint Core Strategy,14043659,PINF814451,Randstad Employment Bureau Limited,R4400-PLP101,Services - Professional Fees,08/04/2016,"1,522.50"
http://statistics.data.gov.uk/id/local-authority-district/23UB,Cheltenham Borough Council,Joint Core Strategy,14043660,PINF814452,Randstad Employment Bureau Limited,R4400-PLP101,Services - Professional Fees,08/04/2016,"1,740.00"
http://statistics.data.gov.uk/id/local-authority-district/23UB,Cheltenham Borough Council,Cemetery & Crematorium Repairs & Maintenance,14044266,1065,Ridgetech Limited,R4003-CCM111,Tools & Equipment - R & M,22/04/2016,510.00
http://statistics.data.gov.uk/id/local-authority-district/23UB,Cheltenham Borough Council,NNDR Collection,14044242,9051791593,Royal Mail,R4520-LTC011,Postages - stamps,22/04/2016,878.74
http://statistics.data.gov.uk/id/local-authority-district/23UB,Cheltenham Borough Council,Council Tax Collection,14044242,9051791593,Royal Mail,R4521-LTC001,Postages - franking machine,22/04/2016,668.37
http://statistics.data.gov.uk/id/local-authority-district/23UB,Cheltenham Borough Council,Council Tax Collection,14044236,9051836655,Royal Mail,R4521-LTC001,Postages - franking machine,22/04/2016,783.70
http://statistics.data.gov.uk/id/local-authority-district/23UB,Cheltenham Borough Council,Debtors,14044236,9051836655,Royal Mail,R4520-SUP012,Postages - stamps,22/04/2016,"1,483.33"
http://statistics.data.gov.uk/id/local-authority-district/23UB,Cheltenham Borough Council,Sandford Lido car park,14043949,Sandford Lido Mar 16,Sandford Parks Lido (Trading) Limited,R5003-CPK103,TPP - Agency Fees,15/04/2016,"22,444.14"
http://statistics.data.gov.uk/id/local-authority-district/23UB,Cheltenham Borough Council,Sandford Lido car park,14043949,Sandford Lido Mar 16,Sandford Parks Lido (Trading) Limited,R5003-CPK103,TPP - Agency Fees,15/04/2016,"-1,683.33"
http://statistics.data.gov.uk/id/local-authority-district/23UB,Cheltenham Borough Council,Repairs and Maintenance,14043995,780,SAS EPC,R2018-HRA100,R & M of Build Voids Energy Performance Certificates,22/04/2016,"1,138.00"
http://statistics.data.gov.uk/id/local-authority-district/23UB,Cheltenham Borough Council,Car Park Income Collection,14043756,541969,Security Plus+ Limited,R4435-CPK002,Cash Collection Contract,08/04/2016,759.99
http://statistics.data.gov.uk/id/local-authority-district/23UB,Cheltenham Borough Council,Car Park Income Collection,14044382,546501,Security Plus+ Limited,R4435-CPK002,Cash Collection Contract,22/04/2016,801.85
http://statistics.data.gov.uk/id/local-authority-district/23UB,Cheltenham Borough Council,Cheltenham Depot,14044660,550126993,Severn Trent Water,R2402-ADB103,Sewerage and Environmental Services,29/04/2016,"2,602.30"
http://statistics.data.gov.uk/id/local-authority-district/23UB,Cheltenham Borough Council,Recreation Centre Repairs & Maintenance,14044417,688203508,Severn Trent Water,R2401-REC111,Water Services - Metered,29/04/2016,"1,882.29"
http://statistics.data.gov.uk/id/local-authority-district/23UB,Cheltenham Borough Council,Flood Risk Management,14044289,SSSI 8283/6220,Sitech Surveying Services,R5001-FRM101,TPP - Major External Contractors,22/04/2016,800.00
http://statistics.data.gov.uk/id/local-authority-district/23UB,Cheltenham Borough Council,Urban Design,14043769,38231,Sorbus International Limited,R4000-URB101,Equipment Purchase,15/04/2016,830.00
http://statistics.data.gov.uk/id/local-authority-district/23UB,Cheltenham Borough Council,Corporate Subscriptions,14044351,63478,South West Councils,R4701-DRM008,Subscriptions,22/04/2016,"5,800.00"
http://statistics.data.gov.uk/id/local-authority-district/23UB,Cheltenham Borough Council,"Cemetery, Crematorium and Churchyards",14044299,SI-2018127,Spaldings Limited,R4000-CCM001,Equipment Purchase,29/04/2016,"1,383.00"
http://statistics.data.gov.uk/id/local-authority-district/23UB,Cheltenham Borough Council,Printing Services,14044370,360313,Springfield Business Papers Limited,R4306-SUP022,Photocopier Charges - Consumables,22/04/2016,"1,045.00"
http://statistics.data.gov.uk/id/local-authority-district/23UB,Cheltenham Borough Council,Allotments,14044387,14959,Stokes & Sons Services Limited,R2075-OPS004,Grounds Maintenance - Contract,22/04/2016,"1,218.20"
http://statistics.data.gov.uk/id/local-authority-district/23UB,Cheltenham Borough Council,Parks & Gardens Operations,14044290,24993,Streetmaster (South Wales) Limited,R2500-OPS001,Fixtures and Fittings - Purchases,22/04/2016,796.00
http://statistics.data.gov.uk/id/local-authority-district/23UB,Cheltenham Borough Council,Neighbourhood works,14044314,2425,Streetspace Group,C1107-CAH005,Building Works,29/04/2016,"2,094.57"
http://statistics.data.gov.uk/id/local-authority-district/23UB,Cheltenham Borough Council,Neighbourhood works,14044314,2425,Streetspace Group,C1107-CAH005,Building Works,29/04/2016,"-2,094.57"
http://statistics.data.gov.uk/id/local-authority-district/23UB,Cheltenham Borough Council,Neighbourhood works,14044314,2425,Streetspace Group,C1107-CAH005,Building Works,29/04/2016,"1,654.45"
http://statistics.data.gov.uk/id/local-authority-district/23UB,Cheltenham Borough Council,Neighbourhood works,14044312,2426,Streetspace Group,C1107-CAH005,Building Works,29/04/2016,"10,232.85"
http://statistics.data.gov.uk/id/local-authority-district/23UB,Cheltenham Borough Council,Neighbourhood works,14044312,2426,Streetspace Group,C1107-CAH005,Building Works,29/04/2016,"-10,232.85"
http://statistics.data.gov.uk/id/local-authority-district/23UB,Cheltenham Borough Council,Neighbourhood works,14044312,2426,Streetspace Group,C1107-CAH005,Building Works,29/04/2016,"1,492.34"
http://statistics.data.gov.uk/id/local-authority-district/23UB,Cheltenham Borough Council,Neighbourhood works,14044312,2426,Streetspace Group,C1107-CAH005,Building Works,29/04/2016,"8,740.51"
http://statistics.data.gov.uk/id/local-authority-district/23UB,Cheltenham Borough Council,Neighbourhood works,14044313,2429,Streetspace Group,C1107-CAH005,Building Works,29/04/2016,"4,802.99"
http://statistics.data.gov.uk/id/local-authority-district/23UB,Cheltenham Borough Council,Neighbourhood works,14044313,2429,Streetspace Group,C1107-CAH005,Building Works,29/04/2016,"-4,802.99"
http://statistics.data.gov.uk/id/local-authority-district/23UB,Cheltenham Borough Council,Neighbourhood works,14044313,2429,Streetspace Group,C1107-CAH005,Building Works,29/04/2016,763.60
http://statistics.data.gov.uk/id/local-authority-district/23UB,Cheltenham Borough Council,Neighbourhood works,14044313,2429,Streetspace Group,C1107-CAH005,Building Works,29/04/2016,"4,039.39"
http://statistics.data.gov.uk/id/local-authority-district/23UB,Cheltenham Borough Council,Town Hall Chairs,14044055,46219,Strictly Tables and Chairs Limited,C4001-CAP124,Furniture,22/04/2016,"6,834.90"
http://statistics.data.gov.uk/id/local-authority-district/23UB,Cheltenham Borough Council,Cemetery & Crematorium Repairs & Maintenance,14043686,5042,System Six Design & Build,R2700-CCM111,Contract Cleaning,08/04/2016,600.00
http://statistics.data.gov.uk/id/local-authority-district/23UB,Cheltenham Borough Council,Income and Expenditure on Investment Properties and Changes in Their Fair Value,14044022,5065,System Six Design & Build,R2004-FIE040,R & M of Build Programmed,22/04/2016,"1,200.00"
http://statistics.data.gov.uk/id/local-authority-district/23UB,Cheltenham Borough Council,Public Conveniences,14044003,5066,System Six Design & Build,R2006-REG019,R & M of Build Re-decoration,22/04/2016,"1,500.00"
http://statistics.data.gov.uk/id/local-authority-district/23UB,Cheltenham Borough Council,Adaptations for the Disabled (CBC),14044158,REDACTED,T P G Disable Aids Limited (TPG),C1107-CAH028,Building Works,22/04/2016,"3,655.00"
http://statistics.data.gov.uk/id/local-authority-district/23UB,Cheltenham Borough Council,Disabled Facility Grants,14043885,REDACTED,T P G Disable Aids Limited (TPG),C1107-CAP221,Building Works,08/04/2016,"4,749.00"
http://statistics.data.gov.uk/id/local-authority-district/23UB,Cheltenham Borough Council,Disabled Facility Grants,14044277,REDACTED,T P G Disable Aids Limited (TPG),C5000-CAP221,Grants,22/04/2016,"2,087.00"
http://statistics.data.gov.uk/id/local-authority-district/23UB,Cheltenham Borough Council,Internal Audit,14044036,60994949,Tameside Metropolitan Borough Council,R4425-SUP010,Professional Fees,22/04/2016,"1,000.00"
http://statistics.data.gov.uk/id/local-authority-district/23UB,Cheltenham Borough Council,"Cemetery, Crematorium and Churchyards",14042815,13839,Teleshore UK Limited,R4000-CCM001,Equipment Purchase,15/04/2016,"1,064.00"
http://statistics.data.gov.uk/id/local-authority-district/23UB,Cheltenham Borough Council,"Cemetery, Crematorium and Churchyards",14044319,14381,Teleshore UK Limited,R4000-CCM001,Equipment Purchase,29/04/2016,584.00
http://statistics.data.gov.uk/id/local-authority-district/23UB,Cheltenham Borough Council,Land & Property presale costs,14043708,DEBT104650,Tewkesbury Borough Council,C1004-CAP401,Legal Fees,22/04/2016,"1,526.00"
http://statistics.data.gov.uk/id/local-authority-district/23UB,Cheltenham Borough Council,Income and Expenditure on Investment Properties and Changes in Their Fair Value,14044431,DEBT104704,Tewkesbury Borough Council,R4400-FIE040,Services - Professional Fees,29/04/2016,"4,900.00"
http://statistics.data.gov.uk/id/local-authority-district/23UB,Cheltenham Borough Council,Housing Benefit Administration,14044393,DEBT104705,Tewkesbury Borough Council,R4420-HBA001,Legal Expenses And Court Costs,29/04/2016,"4,995.00"
http://statistics.data.gov.uk/id/local-authority-district/23UB,Cheltenham Borough Council,Housing Benefit Administration,14044391,DEBT104709,Tewkesbury Borough Council,R4420-HBA001,Legal Expenses And Court Costs,29/04/2016,530.70
http://statistics.data.gov.uk/id/local-authority-district/23UB,Cheltenham Borough Council,Joint Core Strategy,14044392,DEBT104712,Tewkesbury Borough Council,R4400-PLP101,Services - Professional Fees,22/04/2016,"35,940.00"
http://statistics.data.gov.uk/id/local-authority-district/23UB,Cheltenham Borough Council,"Cemetery, Crematorium and Churchyards",14044292,489548,The Barcode Warehouse Limited,R4530-CCM001,IT - Purchase of Hardware,22/04/2016,830.92
http://statistics.data.gov.uk/id/local-authority-district/23UB,Cheltenham Borough Council,Cultural - Service Management and Support Services,14044340,70019376,The Cheltenham Trust,R5001-CSM001,TPP - Major External Contractors,22/04/2016,"138,882.88"
http://statistics.data.gov.uk/id/local-authority-district/23UB,Cheltenham Borough Council,Cultural - Service Management and Support Services,14044345,70019385,The Cheltenham Trust,R4412-CSM001,SLA Agreements Fees,22/04/2016,"39,441.49"
http://statistics.data.gov.uk/id/local-authority-district/23UB,Cheltenham Borough Council,Community Alarms,14044355,62545,The Key Safe Company,R4000-SPP002,Equipment Purchase,29/04/2016,565.44
http://statistics.data.gov.uk/id/local-authority-district/23UB,Cheltenham Borough Council,Community Alarms,14044336,63334,The Key Safe Company,R4000-SPP002,Equipment Purchase,29/04/2016,575.44
http://statistics.data.gov.uk/id/local-authority-district/23UB,Cheltenham Borough Council,General Fund Balance Sheet,14043950,8.50E+11,The Midcounties Co-operative,B6170-BAL100,Short Term Revenue Creditors (incl RIA) - Other entities and individuals,15/04/2016,"3,410.00"
http://statistics.data.gov.uk/id/local-authority-district/23UB,Cheltenham Borough Council,Adaptations for the Disabled (CBC),14044253,REDACTED,The Surveying Practice - Client Account,C1107-CAH028,Building Works,22/04/2016,"8,164.10"
http://statistics.data.gov.uk/id/local-authority-district/23UB,Cheltenham Borough Council,Disabled Facility Grants,14043887,REDACTED,The Surveying Practice - Client Account,C5000-CAP221,Grants,08/04/2016,"7,599.35"
http://statistics.data.gov.uk/id/local-authority-district/23UB,Cheltenham Borough Council,Adaptations for the Disabled (CBC),14044252,REDACTED,The Surveying Practice - Client Account,C1107-CAH028,Building Works,22/04/2016,"7,657.60"
http://statistics.data.gov.uk/id/local-authority-district/23UB,Cheltenham Borough Council,Disabled Facility Grants,14043886,REDACTED,The Surveying Practice - Client Account,C5000-CAP221,Grants,08/04/2016,"5,950.95"
http://statistics.data.gov.uk/id/local-authority-district/23UB,Cheltenham Borough Council,Disabled Facility Grants,14043884,REDACTED,The Surveying Practice - Client Account,C5000-CAP221,Grants,08/04/2016,"2,036.09"
http://statistics.data.gov.uk/id/local-authority-district/23UB,Cheltenham Borough Council,Adaptations for the Disabled (CBC),14043869,REDACTED,The Surveying Practice - Client Account,C1107-CAH028,Building Works,08/04/2016,"6,578.96"
http://statistics.data.gov.uk/id/local-authority-district/23UB,Cheltenham Borough Council,Adaptations for the Disabled (CBC),14044006,REDACTED,The Surveying Practice - Client Account,C1107-CAH028,Building Works,22/04/2016,"30,000.00"
http://statistics.data.gov.uk/id/local-authority-district/23UB,Cheltenham Borough Council,"H&S, vacant property & renovation grants",14043964,REDACTED,The Surveying Practice - Client Account,C5000-CAP223,Grants,15/04/2016,"10,580.62"
http://statistics.data.gov.uk/id/local-authority-district/23UB,Cheltenham Borough Council,Disabled Facility Grants,14044254,REDACTED,The Surveying Practice - Client Account,C5000-CAP221,Grants,22/04/2016,"5,655.54"
http://statistics.data.gov.uk/id/local-authority-district/23UB,Cheltenham Borough Council,Pittville Pump Room Repairs & Maintenance,14044214,51116,Total Floor Care Limited,R2004-CUL113,R & M of Build Programmed,29/04/2016,"1,890.00"
http://statistics.data.gov.uk/id/local-authority-district/23UB,Cheltenham Borough Council,"Cemetery, Crematorium and Churchyards",14043972,6000844X,Ubico Limited,R3020-CCM001,Vehicle Maintenance - Contract,29/04/2016,"15,867.12"
http://statistics.data.gov.uk/id/local-authority-district/23UB,Cheltenham Borough Council,Car Parks - Off Street Operations,14043972,6000844X,Ubico Limited,R3020-CPK001,Vehicle Maintenance - Contract,29/04/2016,"2,161.32"
http://statistics.data.gov.uk/id/local-authority-district/23UB,Cheltenham Borough Council,Car Park Income Collection,14043972,6000844X,Ubico Limited,R3020-CPK002,Vehicle Maintenance - Contract,29/04/2016,"4,221.72"
http://statistics.data.gov.uk/id/local-authority-district/23UB,Cheltenham Borough Council,Parks & Gardens Operations,14043972,6000844X,Ubico Limited,R3020-OPS001,Vehicle Maintenance - Contract,29/04/2016,"7,211.40"
http://statistics.data.gov.uk/id/local-authority-district/23UB,Cheltenham Borough Council,Recreation Centre Operations,14043972,6000844X,Ubico Limited,R3020-REC101,Vehicle Maintenance - Contract,29/04/2016,"2,262.48"
http://statistics.data.gov.uk/id/local-authority-district/23UB,Cheltenham Borough Council,Pest Control,14043972,6000844X,Ubico Limited,R3020-REG018,Vehicle Maintenance - Contract,29/04/2016,"1,858.32"
http://statistics.data.gov.uk/id/local-authority-district/23UB,Cheltenham Borough Council,Callouts,14043972,6000844X,Ubico Limited,R3020-SUP039,Vehicle Maintenance - Contract,29/04/2016,"2,266.44"
http://statistics.data.gov.uk/id/local-authority-district/23UB,Cheltenham Borough Council,Household Waste,14043967,60008691,Ubico Limited,R5001-WST001,TPP - Major External Contractors,22/04/2016,"100,482.91"
http://statistics.data.gov.uk/id/local-authority-district/23UB,Cheltenham Borough Council,Trade Waste,14043967,60008691,Ubico Limited,R5001-TRW001,TPP - Major External Contractors,22/04/2016,"45,818.00"
http://statistics.data.gov.uk/id/local-authority-district/23UB,Cheltenham Borough Council,Recycling Centres,14043967,60008691,Ubico Limited,R5001-RYC004,TPP - Major External Contractors,22/04/2016,"51,821.34"
http://statistics.data.gov.uk/id/local-authority-district/23UB,Cheltenham Borough Council,Bring Sites,14043967,60008691,Ubico Limited,R5001-RYC005,TPP - Major External Contractors,22/04/2016,"10,990.08"
http://statistics.data.gov.uk/id/local-authority-district/23UB,Cheltenham Borough Council,Recycling Collection Schemes,14043967,60008691,Ubico Limited,R5001-RYC006,TPP - Major External Contractors,22/04/2016,"137,696.67"
http://statistics.data.gov.uk/id/local-authority-district/23UB,Cheltenham Borough Council,Green Waste,14043967,60008691,Ubico Limited,R5001-RYC002,TPP - Major External Contractors,22/04/2016,"25,531.33"
http://statistics.data.gov.uk/id/local-authority-district/23UB,Cheltenham Borough Council,Parks & Gardens Operations,14043967,60008691,Ubico Limited,R5001-OPS001,TPP - Major External Contractors,22/04/2016,"42,144.00"
http://statistics.data.gov.uk/id/local-authority-district/23UB,Cheltenham Borough Council,Highways Agency Verges & Trees,14043967,60008691,Ubico Limited,R5001-ESR001,TPP - Major External Contractors,22/04/2016,"24,161.58"
http://statistics.data.gov.uk/id/local-authority-district/23UB,Cheltenham Borough Council,Sports & Open Spaces Operations,14043967,60008691,Ubico Limited,R5001-OPS002,TPP - Major External Contractors,22/04/2016,"49,552.58"
http://statistics.data.gov.uk/id/local-authority-district/23UB,Cheltenham Borough Council,Arle Road Nursery Operations,14043967,60008691,Ubico Limited,R5001-OPS101,TPP - Major External Contractors,22/04/2016,"13,836.25"
http://statistics.data.gov.uk/id/local-authority-district/23UB,Cheltenham Borough Council,Street Cleaning,14043967,60008691,Ubico Limited,R5001-STC001,TPP - Major External Contractors,22/04/2016,"64,422.00"
http://statistics.data.gov.uk/id/local-authority-district/23UB,Cheltenham Borough Council,Public Conveniences,14043967,60008691,Ubico Limited,R5001-REG019,TPP - Major External Contractors,22/04/2016,"6,169.17"
http://statistics.data.gov.uk/id/local-authority-district/23UB,Cheltenham Borough Council,Supervision and Management,14043967,60008691,Ubico Limited,R2071-HRA110,Open Spaces and Grassed Areas,22/04/2016,"27,554.58"
http://statistics.data.gov.uk/id/local-authority-district/23UB,Cheltenham Borough Council,Car Parks - Off Street Operations,14043967,60008691,Ubico Limited,R5001-CPK001,TPP - Major External Contractors,22/04/2016,"7,300.00"
http://statistics.data.gov.uk/id/local-authority-district/23UB,Cheltenham Borough Council,Household Waste,14044246,60008744,Ubico Limited,R5001-WST001,TPP - Major External Contractors,22/04/2016,"100,482.91"
http://statistics.data.gov.uk/id/local-authority-district/23UB,Cheltenham Borough Council,Trade Waste,14044246,60008744,Ubico Limited,R5001-TRW001,TPP - Major External Contractors,22/04/2016,"45,818.00"
http://statistics.data.gov.uk/id/local-authority-district/23UB,Cheltenham Borough Council,Recycling Centres,14044246,60008744,Ubico Limited,R5001-RYC004,TPP - Major External Contractors,22/04/2016,"51,821.34"
http://statistics.data.gov.uk/id/local-authority-district/23UB,Cheltenham Borough Council,Bring Sites,14044246,60008744,Ubico Limited,R5001-RYC005,TPP - Major External Contractors,22/04/2016,"10,990.08"
http://statistics.data.gov.uk/id/local-authority-district/23UB,Cheltenham Borough Council,Recycling Collection Schemes,14044246,60008744,Ubico Limited,R5001-RYC006,TPP - Major External Contractors,22/04/2016,"137,696.67"
http://statistics.data.gov.uk/id/local-authority-district/23UB,Cheltenham Borough Council,Green Waste,14044246,60008744,Ubico Limited,R5001-RYC002,TPP - Major External Contractors,22/04/2016,"25,531.33"
http://statistics.data.gov.uk/id/local-authority-district/23UB,Cheltenham Borough Council,Parks & Gardens Operations,14044246,60008744,Ubico Limited,R5001-OPS001,TPP - Major External Contractors,22/04/2016,"42,144.00"
http://statistics.data.gov.uk/id/local-authority-district/23UB,Cheltenham Borough Council,Highways Agency Verges & Trees,14044246,60008744,Ubico Limited,R5001-ESR001,TPP - Major External Contractors,22/04/2016,"24,161.58"
http://statistics.data.gov.uk/id/local-authority-district/23UB,Cheltenham Borough Council,Sports & Open Spaces Operations,14044246,60008744,Ubico Limited,R5001-OPS002,TPP - Major External Contractors,22/04/2016,"49,552.58"
http://statistics.data.gov.uk/id/local-authority-district/23UB,Cheltenham Borough Council,Arle Road Nursery Operations,14044246,60008744,Ubico Limited,R5001-OPS101,TPP - Major External Contractors,22/04/2016,"13,836.25"
http://statistics.data.gov.uk/id/local-authority-district/23UB,Cheltenham Borough Council,Street Cleaning,14044246,60008744,Ubico Limited,R5001-STC001,TPP - Major External Contractors,22/04/2016,"64,422.00"
http://statistics.data.gov.uk/id/local-authority-district/23UB,Cheltenham Borough Council,Car Parks - Off Street Operations,14044246,60008744,Ubico Limited,R5001-CPK001,TPP - Major External Contractors,22/04/2016,"7,300.00"
http://statistics.data.gov.uk/id/local-authority-district/23UB,Cheltenham Borough Council,Public Conveniences,14044246,60008744,Ubico Limited,R5001-REG019,TPP - Major External Contractors,22/04/2016,"6,169.17"
http://statistics.data.gov.uk/id/local-authority-district/23UB,Cheltenham Borough Council,Supervision and Management,14044246,60008744,Ubico Limited,R2071-HRA110,Open Spaces and Grassed Areas,22/04/2016,"27,554.58"
http://statistics.data.gov.uk/id/local-authority-district/23UB,Cheltenham Borough Council,Development Control - Applications,14044226,2.50E+13,Valuation Office Agency (VOA),R4400-DEV001,Services - Professional Fees,29/04/2016,"1,295.90"
http://statistics.data.gov.uk/id/local-authority-district/23UB,Cheltenham Borough Council,Development Control - Applications,14044229,2.50E+13,Valuation Office Agency (VOA),R4400-DEV001,Services - Professional Fees,29/04/2016,"4,400.00"
http://statistics.data.gov.uk/id/local-authority-district/23UB,Cheltenham Borough Council,Car Parks - Off Street Operations,14042600,CHL00237.,Verrus (UK) Limited (Pay By Phone),R4401-CPK001,Services - Fees and Charges,08/04/2016,"2,472.99"
http://statistics.data.gov.uk/id/local-authority-district/23UB,Cheltenham Borough Council,Car Parks - Off Street Operations,14042940,CHL00240,Verrus (UK) Limited (Pay By Phone),R4401-CPK001,Services - Fees and Charges,08/04/2016,"2,432.82"
http://statistics.data.gov.uk/id/local-authority-district/23UB,Cheltenham Borough Council,Licensing,14044685,17739,VIP-System Limited,R4401-REG002,Services - Fees and Charges,29/04/2016,"3,081.01"
http://statistics.data.gov.uk/id/local-authority-district/23UB,Cheltenham Borough Council,ICT,14044414,91286-077,Virgin Media Business,R4548-SUP005,IT - Cabling and Network,29/04/2016,"30,002.60"
http://statistics.data.gov.uk/id/local-authority-district/23UB,Cheltenham Borough Council,Bulky Household Waste,14044329,16-Apr,Vision 21,R4401-WST004,Services - Fees and Charges,29/04/2016,"4,543.75"
http://statistics.data.gov.uk/id/local-authority-district/23UB,Cheltenham Borough Council,ICT,14044402,UK10/042016/3668,Vodafone Limited,R4507-SUP005,Comms - Mobile Telephones,29/04/2016,"2,540.83"
http://statistics.data.gov.uk/id/local-authority-district/23UB,Cheltenham Borough Council,Allotments,14044212,151534,Walford Timber Limited  T/A Cheltenham Fencing,C4000-CAP501,Acquisition of Equipment,29/04/2016,"1,826.78"
http://statistics.data.gov.uk/id/local-authority-district/23UB,Cheltenham Borough Council,Car Parks - Off Street Operations,14044689,15005/4858,Wansbroughs Solicitors,R4964-CPK001,Insurance Excess,29/04/2016,"2,000.00"
http://statistics.data.gov.uk/id/local-authority-district/23UB,Cheltenham Borough Council,Supervision and Management,14043944,16 001,Waterloo Farm Partnership,R2206-HRA110,Removal Expenses,15/04/2016,749.17
http://statistics.data.gov.uk/id/local-authority-district/23UB,Cheltenham Borough Council,2020 Vision,14043794,33116501,West Oxfordshire District Council,R4400-COR102,Services - Professional Fees,08/04/2016,"6,392.25"
http://statistics.data.gov.uk/id/local-authority-district/23UB,Cheltenham Borough Council,2020 Vision,14043794,33116501,West Oxfordshire District Council,R4400-COR102,Services - Professional Fees,08/04/2016,"21,840.00"
http://statistics.data.gov.uk/id/local-authority-district/23UB,Cheltenham Borough Council,2020 Vision,14043794,33116501,West Oxfordshire District Council,R4400-COR102,Services - Professional Fees,08/04/2016,"12,870.79"
http://statistics.data.gov.uk/id/local-authority-district/23UB,Cheltenham Borough Council,Vision 2020 - Public Protection Project,14043794,33116501,West Oxfordshire District Council,R4400-COR103,Services - Professional Fees,08/04/2016,"118,472.00"
http://statistics.data.gov.uk/id/local-authority-district/23UB,Cheltenham Borough Council,Vision 2020 - Public Protection Project,14043794,33116501,West Oxfordshire District Council,R4400-COR103,Services - Professional Fees,08/04/2016,"11,962.93"
http://statistics.data.gov.uk/id/local-authority-district/23UB,Cheltenham Borough Council,Vision 2020 - Public Protection Project,14043794,33116501,West Oxfordshire District Council,R4400-COR103,Services - Professional Fees,08/04/2016,"55,980.82"
http://statistics.data.gov.uk/id/local-authority-district/23UB,Cheltenham Borough Council,Vision 2020 - Public Protection Project,14043794,33116501,West Oxfordshire District Council,R4400-COR103,Services - Professional Fees,08/04/2016,"63,683.88"
http://statistics.data.gov.uk/id/local-authority-district/23UB,Cheltenham Borough Council,2020 Vision,14043794,33116501,West Oxfordshire District Council,R4400-COR102,Services - Professional Fees,08/04/2016,"35,000.00"
http://statistics.data.gov.uk/id/local-authority-district/23UB,Cheltenham Borough Council,2020 Vision,14043794,33116501,West Oxfordshire District Council,R4400-COR102,Services - Professional Fees,08/04/2016,"14,242.22"
http://statistics.data.gov.uk/id/local-authority-district/23UB,Cheltenham Borough Council,2020 Vision,14044553,33132541,West Oxfordshire District Council,R4400-COR102,Services - Professional Fees,29/04/2016,"12,970.48"
http://statistics.data.gov.uk/id/local-authority-district/23UB,Cheltenham Borough Council,Vision 2020 - Public Protection Project,14044553,33132541,West Oxfordshire District Council,R4400-COR103,Services - Professional Fees,29/04/2016,"19,411.44"
http://statistics.data.gov.uk/id/local-authority-district/23UB,Cheltenham Borough Council,2020 Vision,14044553,33132541,West Oxfordshire District Council,R4400-COR102,Services - Professional Fees,29/04/2016,"204,000.00"
http://statistics.data.gov.uk/id/local-authority-district/23UB,Cheltenham Borough Council,Vision 2020 - Public Protection Project,14044553,33132541,West Oxfordshire District Council,R4400-COR103,Services - Professional Fees,29/04/2016,"10,821.74"
http://statistics.data.gov.uk/id/local-authority-district/23UB,Cheltenham Borough Council,2020 Vision,14044553,33132541,West Oxfordshire District Council,R4400-COR102,Services - Professional Fees,29/04/2016,"11,250.00"
http://statistics.data.gov.uk/id/local-authority-district/23UB,Cheltenham Borough Council,2020 Vision,14044553,33132541,West Oxfordshire District Council,R4400-COR102,Services - Professional Fees,29/04/2016,"12,552.00"
http://statistics.data.gov.uk/id/local-authority-district/23UB,Cheltenham Borough Council,Insurances,14044032,407000020,Zurich Insurance plc (Zurich Municipal),R1411-SUP035,Insurance - Public Liability,22/04/2016,"3,195.00"
http://statistics.data.gov.uk/id/local-authority-district/23UB,Cheltenham Borough Council,Community Welfare Grants,14044251,MA2025,BISLEY LEISURE HIRE LIMITED,R6280-GBD001,Grants,22/04/2016,600.00
http://statistics.data.gov.uk/id/local-authority-district/23UB,Cheltenham Borough Council,Community Welfare Grants,14044248,grant claim ( chelt & dist sports for disabled),CHELT & DIST SPORTS ASSN FOR DISABLED,R6280-GBD001,Grants,22/04/2016,"1,593.50"
http://statistics.data.gov.uk/id/local-authority-district/23UB,Cheltenham Borough Council,Community Welfare Grants,14043817,Pos Acts Scouts,Cheltenham District Scout Association,R6280-GBD001,Grants,08/04/2016,"1,000.00"
http://statistics.data.gov.uk/id/local-authority-district/23UB,Cheltenham Borough Council,Community Welfare Grants,14044163,13960,KEN PINK PLANT HIRE LTD,R6280-GBD001,Grants,29/04/2016,680.00
http://statistics.data.gov.uk/id/local-authority-district/23UB,Cheltenham Borough Council,Homelessness,14043863,Homeless Prov220316,REDACTED,R6280-HOM001,Grants,08/04/2016,600.00
http://statistics.data.gov.uk/id/local-authority-district/23UB,Cheltenham Borough Council,Supervision and Management,14044396,REDACTED,REDACTED,R2206-HRA110,Removal Expenses,22/04/2016,"1,000.00"
http://statistics.data.gov.uk/id/local-authority-district/23UB,Cheltenham Borough Council,Rent Control,14043915,RENT REFUND (REDACTED),REDACTED,R9910-HRA900,Refund of Overpiad Rent,15/04/2016,"1,312.67"
http://statistics.data.gov.uk/id/local-authority-district/23UB,Cheltenham Borough Council,Rent Control,14044653,RENT REFUND REDACTED,REDACTED,R9910-HRA900,Refund of Overpiad Rent,29/04/2016,745.03
http://statistics.data.gov.uk/id/local-authority-district/23UB,Cheltenham Borough Council,Rent Control,14043919,RENT REFUND (REDACTED),REDACTED,R9910-HRA900,Refund of Overpiad Rent,15/04/2016,"1,628.10"
http://statistics.data.gov.uk/id/local-authority-district/23UB,Cheltenham Borough Council,General Fund Balance Sheet,14044667,LEV201650A090,Municipal Mutual Insurance Ltd,B7120-BAL100,Long term Provisions - used,29/04/2016,"42,401.00"
http://statistics.data.gov.uk/id/local-authority-district/23UB,Cheltenham Borough Council,Community Welfare Grants,14044165,SF66/16,REDACTED,R6280-GBD001,Grants,22/04/2016,"1,000.00"
http://statistics.data.gov.uk/id/local-authority-district/23UB,Cheltenham Borough Council,Car Parks - Off Street Operations,14043954,TCE PERMITS,Silver Agency Limited,R9353-CPK001,Parking Permits,15/04/2016,"1,950.00"
http://statistics.data.gov.uk/id/local-authority-district/23UB,Cheltenham Borough Council,Community Welfare Grants,14043880,Pocket Parks Payment,The Conservation Volunteers,R6280-GBD001,Grants,08/04/2016,"26,135.00"
http://statistics.data.gov.uk/id/local-authority-district/23UB,Cheltenham Borough Council,Parish Council Tax Support Grant,10018140,Direct Debit ,Swindon Village Parish Council,R6280-OOE210,Grants,04/04/2016,618.18
http://statistics.data.gov.uk/id/local-authority-district/23UB,Cheltenham Borough Council,Parish Council Tax Support Grant,10018140,Direct Debit ,Up Hatherley Parish Council,R6280-OOE210,Grants,04/04/2016,"1,494.66"
http://statistics.data.gov.uk/id/local-authority-district/23UB,Cheltenham Borough Council,Parish Council Tax Support Grant,10018140,Direct Debit ,Leckhampton with Warden Hill,R6280-OOE210,Grants,04/04/2016,"2,087.77"
http://statistics.data.gov.uk/id/local-authority-district/23UB,Cheltenham Borough Council,Parish Council Tax Support Grant,10018140,Direct Debit ,Charlton Kings Parish Council,R6280-OOE210,Grants,04/04/2016,"2,636.42"
http://statistics.data.gov.uk/id/local-authority-district/23UB,Cheltenham Borough Council,Parish Council Tax Support Grant,10018140,Direct Debit ,Prestbury parish Council,R6280-OOE210,Grants,04/04/2016,"3,431.32"
http://statistics.data.gov.uk/id/local-authority-district/23UB,Cheltenham Borough Council,Playhouse Theatre,10018138,Direct Debit ,Cheltenham Playhouse Annual Net Grant 15/16 & 16/17,R6280-CUL109,Grants,04/04/2016,"131,400.00"
http://statistics.data.gov.uk/id/local-authority-district/23UB,Cheltenham Borough Council,Everyman Theatre,10018180,Direct Debit ,Glos Everyman Theatre Co Ltd - 2016/17 Annual Grant,R6280-CUL108,Grants,06/04/2016,"195,050.00"
http://statistics.data.gov.uk/id/local-authority-district/23UB,Cheltenham Borough Council,Parks & Gardens Operations,10018197,Direct Debit ,SOUTHERN ELECTRIC DD - BANDSTAND MONTPELLIER GARDENS,R2100-OPS001,Electricity,07/04/2016,514.00
http://statistics.data.gov.uk/id/local-authority-district/23UB,Cheltenham Borough Council,Sports & Open Spaces Operations,10018197,Direct Debit ,SOUTHERN ELECTRIC DD -SWINDON ROAD PAVILION,R2100-OPS002,Electricity,07/04/2016,550.05
http://statistics.data.gov.uk/id/local-authority-district/23UB,Cheltenham Borough Council,Car Parks - Off Street Operations,10018197,Direct Debit ,SOUTHERN ELECTRIC DD - CAR PARK - REGENT ARCADE,R2100-CPK001,Electricity,07/04/2016,619.37
http://statistics.data.gov.uk/id/local-authority-district/23UB,Cheltenham Borough Council,"Cemetery, Crematorium and Churchyards",10018197,Direct Debit ,SOUTHERN ELECTRIC DD -  CEMETARY & CREMATORIUM,R2100-CCM001,Electricity,07/04/2016,640.22
http://statistics.data.gov.uk/id/local-authority-district/23UB,Cheltenham Borough Council,Telephones,10018197,Direct Debit ,VIRGIN MEDIA 510828101,R4515-SUP006,Comms - Telephone Call Charges,07/04/2016,694.50
http://statistics.data.gov.uk/id/local-authority-district/23UB,Cheltenham Borough Council,Car Parks - Off Street Operations,10018197,Direct Debit ,SOUTHERN ELECTRIC DD -  CAR PARL GROSVENOR TERRACE,R2100-CPK001,Electricity,07/04/2016,926.92
http://statistics.data.gov.uk/id/local-authority-district/23UB,Cheltenham Borough Council,Art Gallery & Museum Operations,10018197,Direct Debit ,SOUTHERN ELECTRIC DD -  CHELTENHAM ART GALLERY & MUSEUM,R2100-CUL107,Electricity,07/04/2016,"1,105.96"
http://statistics.data.gov.uk/id/local-authority-district/23UB,Cheltenham Borough Council,Telephones,10018197,Direct Debit ,VIRGIN MEDIA 506761601,R4515-SUP006,Comms - Telephone Call Charges,07/04/2016,"1,389.04"
http://statistics.data.gov.uk/id/local-authority-district/23UB,Cheltenham Borough Council,Telephones,10018197,Direct Debit ,VIRGIN MEDIA 506761601,R4436-SUP006,CCTV Line Rental,07/04/2016,"2,071.38"
http://statistics.data.gov.uk/id/local-authority-district/23UB,Cheltenham Borough Council,"Cemetery, Crematorium and Churchyards",10018236,Direct Debit ,SEVERN TRENT WATER  6401427349,R2402-CCM001,Sewerage and Environmental Services,11/04/2016,"1,403.76"
http://statistics.data.gov.uk/id/local-authority-district/23UB,Cheltenham Borough Council,"Cemetery, Crematorium and Churchyards",10018236,Direct Debit ,SEVERN TRENT WATER  6401427349,R2401-CCM001,Water Services - Metered,11/04/2016,"1,504.62"
http://statistics.data.gov.uk/id/local-authority-district/23UB,Cheltenham Borough Council,Council Tax Collection,10018342,Direct Debit ,ROYAL MAIL SW & SW  DD684485011,R4521-LTC001,Postages - franking machine,15/04/2016,"13,829.80"
http://statistics.data.gov.uk/id/local-authority-district/23UB,Cheltenham Borough Council,Treasury Management,10018344,Direct Debit ,CARDNET DD500200738,R4428-COR006,Services - credit card charges,15/04/2016,"1,714.78"
http://statistics.data.gov.uk/id/local-authority-district/23UB,Cheltenham Borough Council,AGM Trading Account,10018344,Direct Debit ,CARDNET DD169118221,R4428-TAC101,Services - credit card charges,15/04/2016,"1,938.01"
http://statistics.data.gov.uk/id/local-authority-district/23UB,Cheltenham Borough Council,Ubico Intercompany Account,10018418,Direct Debit ,BRITISH TELECOM DDVP 31400270Q05601,R4515-HLD102,Comms - Telephone Call Charges,19/04/2016,530.67
http://statistics.data.gov.uk/id/local-authority-district/23UB,Cheltenham Borough Council,Art Gallery & Museum Operations,10018418,Direct Debit ,BRITISH TELECOM DDVP 31400270Q05601,R4515-CUL107,Comms - Telephone Call Charges,19/04/2016,539.34
http://statistics.data.gov.uk/id/local-authority-district/23UB,Cheltenham Borough Council,Supervision and Management,10018418,Direct Debit ,BRITISH TELECOM DDVP 31400270Q05601,R4515-HRA110,Comms - Telephone Call Charges,19/04/2016,"2,622.64"
http://statistics.data.gov.uk/id/local-authority-district/23UB,Cheltenham Borough Council,Car Parks - Off Street Operations,10018418,Direct Debit ,BRITISH TELECOM DDVP 31400270Q05601,R4515-CPK001,Comms - Telephone Call Charges,19/04/2016,"3,030.90"
http://statistics.data.gov.uk/id/local-authority-district/23UB,Cheltenham Borough Council,Recreation Centre Repairs & Maintenance,10018410,Direct Debit ,E-ON  DD014810818700A,R2100-REC111,Electricity,19/04/2016,"2,179.86"
http://statistics.data.gov.uk/id/local-authority-district/23UB,Cheltenham Borough Council,Town Hall Repairs & Maintenance,10018410,Direct Debit ,E-ON  DD014810817900A,R2100-CUL112,Electricity,19/04/2016,"2,679.11"
http://statistics.data.gov.uk/id/local-authority-district/23UB,Cheltenham Borough Council,Art Gallery & Museum Repairs & Maintenance,10018410,Direct Debit ,E-ON  DD014810818380A,R2100-CUL117,Electricity,19/04/2016,"3,263.41"
http://statistics.data.gov.uk/id/local-authority-district/23UB,Cheltenham Borough Council,Cheltenham Depot,10018410,Direct Debit ,E-ON  DD014810818970A,R2100-ADB103,Electricity,19/04/2016,"3,511.17"
http://statistics.data.gov.uk/id/local-authority-district/23UB,Cheltenham Borough Council,Cheltenham Municipal Offices,10018410,Direct Debit ,E-ON  DD014810818540A,R2100-ADB101,Electricity,19/04/2016,"3,778.88"
http://statistics.data.gov.uk/id/local-authority-district/23UB,Cheltenham Borough Council,Recreation Centre Repairs & Maintenance,10018410,Direct Debit ,E-ON  DD014810819190A,R2100-REC111,Electricity,19/04/2016,"3,836.77"
http://statistics.data.gov.uk/id/local-authority-district/23UB,Cheltenham Borough Council,Car Parks - Off Street Operations,10018495,Direct Debit ,S/LINE  WORLDPAY,R4428-CPK001,Services - credit card charges,22/04/2016,"2,235.53"
http://statistics.data.gov.uk/id/local-authority-district/23UB,Cheltenham Borough Council,Car Parks - Off Street Operations,10018625,Direct Debit ,SEVERN TRENT - CAR PARK NORTHFIELD TERRACE,R2402-CPK001,Sewerage and Environmental Services,26/04/2016,723.15
http://statistics.data.gov.uk/id/local-authority-district/23UB,Cheltenham Borough Council,Cheltenham Depot,10018625,Direct Debit ,SEVERN TRENT WATER DD 4060021498,R2401-ADB103,Water Services - Metered,26/04/2016,922.58
http://statistics.data.gov.uk/id/local-authority-district/23UB,Cheltenham Borough Council,Cheltenham Depot,10018625,Direct Debit ,SEVERN TRENT WATER DD 4060021498,R2402-ADB103,Sewerage and Environmental Services,26/04/2016,"1,317.95"
http://statistics.data.gov.uk/id/local-authority-district/23UB,Cheltenham Borough Council,Supervision and Management,10018637,Direct Debit ,REDACTED,R2206-HRA110,Removal Expenses,26/04/2016,"1,000.00"
http://statistics.data.gov.uk/id/local-authority-district/23UB,Cheltenham Borough Council,Supervision and Management,10018778,Direct Debit ,TOTAL DD - BULLINGTON COURT,R2101-HRA110,Gas,29/04/2016,729.68
http://statistics.data.gov.uk/id/local-authority-district/23UB,Cheltenham Borough Council,Pittville Pump Room Repairs & Maintenance,10018778,Direct Debit ,TOTAL DD - PITTVILLE PUMP ROOM,R2101-CUL113,Gas,29/04/2016,845.02
http://statistics.data.gov.uk/id/local-authority-district/23UB,Cheltenham Borough Council,Supervision and Management,10018778,Direct Debit ,TOTAL DD - POPES CLOSE,R2101-HRA110,Gas,29/04/2016,933.59
http://statistics.data.gov.uk/id/local-authority-district/23UB,Cheltenham Borough Council,Supervision and Management,10018778,Direct Debit ,TOTAL DD - GILBERT WARD COURT,R2101-HRA110,Gas,29/04/2016,985.69
http://statistics.data.gov.uk/id/local-authority-district/23UB,Cheltenham Borough Council,Supervision and Management,10018778,Direct Debit ,TOTAL DD - WALLACE HOUSE,R2101-HRA110,Gas,29/04/2016,"1,140.87"
http://statistics.data.gov.uk/id/local-authority-district/23UB,Cheltenham Borough Council,Recreation Centre Repairs & Maintenance,10018778,Direct Debit ,TOTAL DD - RECREATION CENTRE,R2101-REC111,Gas,29/04/2016,"1,196.22"
http://statistics.data.gov.uk/id/local-authority-district/23UB,Cheltenham Borough Council,Supervision and Management,10018778,Direct Debit ,TOTAL DD - GOLDFOOT HOUSE,R2101-HRA110,Gas,29/04/2016,"1,242.12"
http://statistics.data.gov.uk/id/local-authority-district/23UB,Cheltenham Borough Council,Supervision and Management,10018778,Direct Debit ,TOTAL DD - COOPERS  COURT,R2101-HRA110,Gas,29/04/2016,"1,332.88"
http://statistics.data.gov.uk/id/local-authority-district/23UB,Cheltenham Borough Council,Town Hall Repairs & Maintenance,10018778,Direct Debit ,TOTAL DD - TOWN HALL,R2101-CUL112,Gas,29/04/2016,"1,697.06"
http://statistics.data.gov.uk/id/local-authority-district/23UB,Cheltenham Borough Council,Art Gallery & Museum Repairs & Maintenance,10018778,Direct Debit ,TOTAL DD - ART GALLERY & MUSEUM,R2101-CUL117,Gas,29/04/2016,"2,108.22"
http://statistics.data.gov.uk/id/local-authority-district/23UB,Cheltenham Borough Council,Cheltenham Municipal Offices,10018778,Direct Debit ,TOTAL DD - MUNICIPAL OFFICES,R2101-ADB101,Gas,29/04/2016,"2,471.69"
http://statistics.data.gov.uk/id/local-authority-district/23UB,Cheltenham Borough Council,"Cemetery, Crematorium and Churchyards",10018778,Direct Debit ,TOTAL DD - CREMATORIUM,R2101-CCM001,Gas,29/04/2016,"3,582.84"
http://statistics.data.gov.uk/id/local-authority-district/23UB,Cheltenham Borough Council,Cheltenham Depot,10018778,Direct Debit ,TOTAL DD - CENTRAL DEPOT,R2101-ADB103,Gas,29/04/2016,"3,587.51"
http://statistics.data.gov.uk/id/local-authority-district/23UB,Cheltenham Borough Council,Recreation Centre Repairs & Maintenance,10018778,Direct Debit ,TOTAL DD - RRECREATION CENTRE,R2101-REC111,Gas,29/04/2016,"8,433.53"
